Workbook

Sheet RELEVÉS
A1: 08:48:00 | K1: J | N1: N | Q1: W | AL1: AG | AO1: AK | AV1: AX | AW1: AX
B2: Pression mini | E2: Pression maxi | H2: Température ressentie | K2: Température mini | N2: Température maxi | Q2: Vent en Km/h | AB2: Humidité H% | AL2: Pluie | AO2: Temps de pluie | AV2: Sonde Soleil
B3: mini | D3: heure | E3: maxi | G3: heure | H3: mini | J3: heure | K3: mini | M3: heure | N3: maxi | P3: heure | Q3: maxi | S3: Heure | U3: Moyenne | X3: Sens | Z3: Sens | AB3: Mini | AD3: Heure | AF3: Maxi | AH3: Heure | AJ3: Moy | AK3: mm | AM3: Heure | AO3: AK | AV3: =W1450/60/1440 -> 0.4784722222
AO4: 0 à 7h | AQ4: 7 à 12h | AS4: 12 à 19h | AU4: 19h à 24h
B5: =MIN(H9:H1448) -> 1007.8 | D5: =VLOOKUP($B5,$H$9:$Q$1448,10,0) -> 19:35:00 | E5: =MAX(H9:H1448) -> 1018.9 | G5: =VLOOKUP($E5,$H$9:$Q$1448,10,0) -> 01:07:00 | H5: =MAX($B$9:$B$1448) -> 29.8 | J5: =VLOOKUP($H5,$D$9:$Q$1448,14,0) -> 15:28:00 | K5: =MIN($B$9:$B$1448) -> 17.5 | M5: =VLOOKUP($K5,$B$9:$Q$1448,16,0) -> 07:29:00 | N5: =MAX(B9:B1448) -> 29.8 | P5: =VLOOKUP($N5,$B$9:$Q$1448,16,0) -> 16:33:00 | Q5: =MAX(E9:F1448) -> 18.4 | S5: =VLOOKUP($Q5,$F$9:$Q$1448,12,0) -> 07:20:00 | Z5: ONO | AB5: =MIN(C9:C1448) -> 55 | AF5: =MAX(C9:C1448) -> 77 | AH5: =VLOOKUP($AF5,$C$9:$Q$1448,15,0) -> 07:18:00 | AJ5: =AVERAGE(C9:C1448) -> 64.84570475 | AK5: =MAX($K$9:$K$1448) -> 0.3 | AM5: =(U1450/60)/1440 -> 00:58:00 | AO5: =AO6+AQ6 -> 00:58:00 | AS5: =AS6+AU6 -> 00:00:00
AO6: =SUM(U9:U428)/60/1440 -> 00:00:00 | AQ6: =SUM(U429:U728)/60/1440 -> 00:58:00 | AS6: =SUM(U729:U1148)/60/1440 -> 00:00:00 | AU6: =SUM(U1148:U1448)/60/1440 -> 00:00:00
B7: 5 | C7: 6 | D7: 8 | E7: 9 | F7: 10 | G7: 11 | H7: 13 | I7: 14 | J7: 15 | K7: 16
B8: T° Ext | C8: H% Ext | D8: Ressentie | E8: Vent | F8: Rafale | G8: Sens | H8: Pression | I8: Lux | J8: Pluie 1h | K8: Jour | L8: Semaine | M8: Mois | N8: Année | O8: CH1 | P8: CH2 | Q8: Heures | R8: Date | S8: Maxi | T8: Graph | U8: Pluie | W8: Soleil | Z8: Soleil | AK8: Fin | AM8: Début
B9: 22.7 | C9: 58 | D9: 22.7 | E9: 7.2 | F9: 9.4 | G9: 23 | H9: 1018.1 | I9: 0 | J9: 0 | K9: 0 | L9: 0 | M9: 3.5 | N9: 127 | O9: 21.8 | P9: 22 | Q9: 00:00:00 | R9: 20220522 | Z9: N | AD9: 0 | AE9: 0
B10: 22.7 | C10: 58 | D10: 22.7 | E10: 6.8 | F10: 9.4 | G10: 66 | H10: 1018.3 | I10: 0 | J10: 0 | K10: 0 | L10: 0 | M10: 3.5 | N10: 127 | O10: 21.8 | P10: 22 | Q10: 00:01:00 | U10: =IF(J10>0,60,"") ->  | Z10: N | AB10: 0 | AD10: 11 | AE10: 22
B11: 22.7 | C11: 59 | D11: 22.7 | E11: 6.1 | F11: 9.4 | G11: 23 | H11: 1018.3 | I11: 0 | J11: 0 | K11: 0 | L11: 0 | M11: 3.5 | N11: 127 | O11: 21.8 | P11: 22 | Q11: 00:02:00 | U11: =IF(J11>0,60,"") ->  | Z11: NNE | AB11: 22.5 | AD11: =AB11+$AD$10 -> 33.5 | AE11: 45 | AM11: Aide mémoire
B12: 22.6 | C12: 59 | D12: 22.6 | E12: 5.8 | F12: 7.2 | G12: 47 | H12: 1018.1 | I12: 0 | J12: 0 | K12: 0 | L12: 0 | M12: 3.5 | N12: 127 | O12: 21.7 | P12: 21.9 | Q12: 00:03:00 | U12: =IF(J12>0,60,"") ->  | Z12: NE | AB12: 45 | AD12: 56 | AE12: 67 | AK12: Pluie | AM12: =SOMME(K9:K1448)
B13: 22.6 | C13: 59 | D13: 22.6 | E13: 6.1 | F13: 9.4 | G13: 26 | H13: 1018.1 | I13: 0 | J13: 0 | K13: 0 | L13: 0 | M13: 3.5 | N13: 127 | O13: 21.7 | P13: 21.9 | Q13: 00:04:00 | Z13: ENE | AB13: 67.5 | AD13: 78.5 | AE13: 90
B14: 22.6 | C14: 59 | D14: 22.6 | E14: 6.1 | F14: 7.2 | G14: 3 | H14: 1018.2 | I14: 0 | J14: 0 | K14: 0 | L14: 0 | M14: 3.5 | N14: 127 | O14: 21.7 | P14: 21.9 | Q14: 00:05:00 | AB14: 90 | AD14: 101 | AE14: 112 | AK14: Commentaires | AO14: =SOMME(U9:U1448)
B15: 22.6 | C15: 59 | D15: 22.6 | E15: 4 | F15: 5.4 | G15: 39 | H15: 1018.3 | I15: 0 | J15: 0 | K15: 0 | L15: 0 | M15: 3.5 | N15: 127 | O15: 21.7 | P15: 21.9 | Q15: 00:06:00 | Z15: ESE | AB15: 112.5 | AD15: 123.5 | AE15: 135
B16: 22.6 | C16: 59 | D16: 22.6 | E16: 1.4 | F16: 1.8 | G16: 34 | H16: 1018.3 | I16: 0 | J16: 0 | K16: 0 | L16: 0 | M16: 3.5 | N16: 127 | O16: 21.7 | P16: 21.9 | Q16: 00:07:00 | Z16: SSE | AB16: 135 | AD16: 146 | AE16: 157 | AK16: Soleil | AM16: =SOMME(W9:W1448)
B17: 22.5 | C17: 59 | D17: 22.5 | E17: 2.2 | F17: 3.6 | G17: 44 | H17: 1018.2 | I17: 0 | J17: 0 | K17: 0 | L17: 0 | M17: 3.5 | N17: 127 | O17: 21.6 | P17: 21.8 | Q17: 00:08:00 | Z17: SE | AB17: 157.5 | AD17: 168.5 | AE17: 180 | AK17: Soleil | AM17: =W1450/60/1440
B18: 22.5 | C18: 59 | D18: 22.5 | E18: 6.1 | F18: 7.2 | G18: 24 | H18: 1018.2 | I18: 0 | J18: 0 | K18: 0 | L18: 0 | M18: 3.5 | N18: 127 | O18: 21.6 | P18: 21.8 | Q18: 00:09:00 | Z18: S | AB18: 180 | AD18: 191 | AE18: 202
B19: 22.4 | C19: 59 | D19: 22.4 | E19: 4.7 | F19: 5.4 | G19: 27 | H19: 1018.2 | I19: 0 | J19: 0 | K19: 0 | L19: 0 | M19: 3.5 | N19: 127 | O19: 21.6 | P19: 21.8 | Q19: 00:10:00 | Z19: SSO | AB19: 202.5 | AD19: 213.5 | AE19: 225
B20: 22.4 | C20: 59 | D20: 22.4 | E20: 5.4 | F20: 5.4 | G20: 42 | H20: 1018.2 | I20: 0 | J20: 0 | K20: 0 | L20: 0 | M20: 3.5 | N20: 127 | O20: 21.6 | P20: 21.7 | Q20: 00:11:00 | Z20: SO | AB20: 225 | AD20: 236 | AE20: 247
B21: 22.4 | C21: 59 | D21: 22.4 | E21: 6.1 | F21: 7.2 | G21: 34 | H21: 1018.2 | I21: 0 | J21: 0 | K21: 0 | L21: 0 | M21: 3.5 | N21: 127 | O21: 21.6 | P21: 21.7 | Q21: 00:12:00 | Z21: OSO | AB21: 247.5 | AD21: 258.5 | AE21: 270
B22: 22.4 | C22: 59 | D22: 22.4 | E22: 6.8 | F22: 9.4 | G22: 32 | H22: 1017.9 | I22: 0 | J22: 0 | K22: 0 | L22: 0 | M22: 3.5 | N22: 127 | O22: 21.6 | P22: 21.7 | Q22: 00:13:00 | Z22: O | AB22: 270 | AD22: 281 | AE22: 292
B23: 22.3 | C23: 60 | D23: 22.3 | E23: 5.4 | F23: 7.2 | G23: 37 | H23: 1018 | I23: 0 | J23: 0 | K23: 0 | L23: 0 | M23: 3.5 | N23: 127 | O23: 21.5 | P23: 21.7 | Q23: 00:14:00 | Z23: ONO | AB23: 292.5 | AD23: 303.5 | AE23: 315
B24: 22.3 | C24: 60 | D24: 22.3 | E24: 2.9 | F24: 3.6 | G24: 20 | H24: 1018 | I24: 0 | J24: 0 | K24: 0 | L24: 0 | M24: 3.5 | N24: 127 | O24: 21.5 | P24: 21.6 | Q24: 00:15:00 | Z24: NO | AB24: 315 | AD24: 326 | AE24: 337
B25: 22.3 | C25: 60 | D25: 22.3 | E25: 3.6 | F25: 7.2 | G25: 36 | H25: 1018.2 | I25: 0 | J25: 0 | K25: 0 | L25: 0 | M25: 3.5 | N25: 127 | O25: 21.5 | P25: 21.6 | Q25: 00:16:00 | Z25: NNO | AB25: 337.5 | AD25: 348.5 | AE25: 349
B26: 22.3 | C26: 60 | D26: 22.3 | E26: 4.7 | F26: 7.2 | G26: 36 | H26: 1018.2 | I26: 0 | J26: 0 | K26: 0 | L26: 0 | M26: 3.5 | N26: 127 | O26: 21.5 | P26: 21.6 | Q26: 00:17:00 | Z26: N | AB26: 349 | AD26: 360
B27: 22.3 | C27: 60 | D27: 22.3 | E27: 2.2 | F27: 3.6 | G27: 47 | H27: 1018.1 | I27: 0 | J27: 0 | K27: 0 | L27: 0 | M27: 3.5 | N27: 127 | O27: 21.5 | P27: 21.6 | Q27: 00:18:00
B28: 22.3 | C28: 60 | D28: 22.3 | E28: 5.4 | F28: 7.2 | G28: 21 | H28: 1018.1 | I28: 0 | J28: 0 | K28: 0 | L28: 0 | M28: 3.5 | N28: 127 | O28: 21.4 | P28: 21.6 | Q28: 00:19:00 | AD28: =INDEX($Z$9:$Z$26,IF(ISNA(MATCH($AD$30,$AD$9:$AD$26,0)),MATCH($AD$30,$AD$9:$AD$26,1)+1,MATCH($AD$30,$AD$9:$AD$26,0)),1) -> NNE
B29: 22.3 | C29: 60 | D29: 22.3 | E29: 4.3 | F29: 5.4 | G29: 33 | H29: 1018.2 | I29: 0 | J29: 0 | K29: 0 | L29: 0 | M29: 3.5 | N29: 127 | O29: 21.4 | P29: 21.6 | Q29: 00:20:00 | AB29: =SUM(AB32:AB47) -> 1 | AD29: =MAX(AB32:AB47) -> 0.2363636364 | AF29: =SUM(AF32:AF47) -> 55
B30: 22.3 | C30: 60 | D30: 22.3 | E30: 3.2 | F30: 3.6 | G30: 59 | H30: 1018.1 | I30: 0 | J30: 0 | K30: 0 | L30: 0 | M30: 3.5 | N30: 127 | O30: 21.4 | P30: 21.5 | Q30: 00:21:00 | AD30: =VLOOKUP(AD29,AB32:AD47,AD31,0) -> 22
B31: 22.3 | C31: 60 | D31: 22.3 | E31: 4.3 | F31: 5.4 | G31: 38 | H31: 1018.2 | I31: 0 | J31: 0 | K31: 0 | L31: 0 | M31: 3.5 | N31: 127 | O31: 21.3 | P31: 21.5 | Q31: 00:22:00 | AD31: 3
B32: 22.2 | C32: 60 | D32: 22.2 | E32: 7.2 | F32: 9.4 | G32: 29 | H32: 1017.9 | I32: 0 | J32: 0 | K32: 0 | L32: 0 | M32: 3.5 | N32: 127 | O32: 21.3 | P32: 21.5 | Q32: 00:23:00 | AB32: =AF32/$AF$29 -> 0.07272727273 | AD32: 0 | AF32: =COUNTIF($G$9:$G$1448,AD32) -> 4
B33: 22.2 | C33: 60 | D33: 22.2 | E33: 6.1 | F33: 9.4 | G33: 24 | H33: 1018.1 | I33: 0 | J33: 0 | K33: 0 | L33: 0 | M33: 3.5 | N33: 127 | O33: 21.3 | P33: 21.5 | Q33: 00:24:00 | AB33: =AF33/$AF$29 -> 0.2363636364 | AD33: 22 | AF33: =COUNTIF($G$9:$G$1448,AD33) -> 13
B34: 22.2 | C34: 60 | D34: 22.2 | E34: 4 | F34: 5.4 | G34: 66 | H34: 1017.9 | I34: 0 | J34: 0 | K34: 0 | L34: 0 | M34: 3.5 | N34: 127 | O34: 21.3 | P34: 21.4 | Q34: 00:25:00 | AB34: =AF34/$AF$29 -> 0.2 | AD34: 45 | AF34: 11
B35: 22.1 | C35: 61 | D35: 22.1 | E35: 5 | F35: 7.2 | G35: 13 | H35: 1017.8 | I35: 0 | J35: 0 | K35: 0 | L35: 0 | M35: 3.5 | N35: 127 | O35: 21.3 | P35: 21.4 | Q35: 00:26:00 | AB35: 0.1272727273 | AD35: 67 | AF35: =COUNTIF($G$9:$G$1448,AD35) -> 7
B36: 22.1 | C36: 61 | D36: 22.1 | E36: 4 | F36: 7.2 | G36: 16 | H36: 1017.9 | I36: 0 | J36: 0 | K36: 0 | L36: 0 | M36: 3.5 | N36: 127 | O36: 21.2 | P36: 21.4 | Q36: 00:27:00 | AB36: 0.1636363636 | AD36: 90 | AF36: 9
B37: 22 | C37: 61 | D37: 22 | E37: 1.4 | F37: 3.6 | G37: 71 | H37: 1017.6 | I37: 0 | J37: 0 | K37: 0 | L37: 0 | M37: 3.5 | N37: 127 | O37: 21.2 | P37: 21.4 | Q37: 00:28:00 | AB37: 0.05454545455 | AD37: 112 | AF37: 3
B38: 22 | C38: 61 | D38: 22 | E38: 2.5 | F38: 3.6 | G38: 61 | H38: 1017.8 | I38: 0 | J38: 0 | K38: 0 | L38: 0 | M38: 3.5 | N38: 127 | O38: 21.2 | P38: 21.4 | Q38: 00:29:00 | AB38: 0 | AD38: 135 | AF38: 0
B39: 22 | C39: 61 | D39: 22 | E39: 4 | F39: 5.4 | G39: 32 | H39: 1017.9 | I39: 0 | J39: 0 | K39: 0 | L39: 0 | M39: 3.5 | N39: 127 | O39: 21.2 | P39: 21.4 | Q39: 00:30:00 | AB39: 0 | AD39: 157 | AF39: 0
B40: 21.9 | C40: 61 | D40: 21.9 | E40: 3.2 | F40: 5.4 | G40: 43 | H40: 1017.9 | I40: 0 | J40: 0 | K40: 0 | L40: 0 | M40: 3.5 | N40: 127 | O40: 21.2 | P40: 21.3 | Q40: 00:31:00 | AB40: 0 | AD40: 180 | AF40: 0
B41: 21.9 | C41: 61 | D41: 21.9 | E41: 5 | F41: 7.2 | G41: 23 | H41: 1017.9 | I41: 0 | J41: 0 | K41: 0 | L41: 0 | M41: 3.5 | N41: 127 | O41: 21.1 | P41: 21.3 | Q41: 00:32:00 | AB41: 0 | AD41: 202 | AF41: 0
B42: 21.9 | C42: 62 | D42: 21.9 | E42: 5 | F42: 7.2 | G42: 10 | H42: 1017.7 | I42: 0 | J42: 0 | K42: 0 | L42: 0 | M42: 3.5 | N42: 127 | O42: 21.1 | P42: 21.3 | Q42: 00:33:00 | AB42: 0 | AD42: 225 | AF42: 0
B43: 21.9 | C43: 62 | D43: 21.9 | E43: 2.5 | F43: 3.6 | G43: 8 | H43: 1017.7 | I43: 0 | J43: 0 | K43: 0 | L43: 0 | M43: 3.5 | N43: 127 | O43: 21.1 | P43: 21.3 | Q43: 00:34:00 | AB43: 0.05454545455 | AD43: 247 | AF43: 3
B44: 21.9 | C44: 62 | D44: 21.9 | E44: 5.8 | F44: 9.4 | G44: 352 | H44: 1018 | I44: 0 | J44: 0 | K44: 0 | L44: 0 | M44: 3.5 | N44: 127 | O44: 21.1 | P44: 21.3 | Q44: 00:35:00 | AB44: 0.01818181818 | AD44: 270 | AF44: 1
B45: 21.8 | C45: 62 | D45: 21.8 | E45: 2.9 | F45: 5.4 | G45: 355 | H45: 1018.1 | I45: 0 | J45: 0 | K45: 0 | L45: 0 | M45: 3.5 | N45: 127 | O45: 21 | P45: 21.2 | Q45: 00:36:00 | AB45: 0.01818181818 | AD45: 292 | AF45: 1
B46: 21.7 | C46: 62 | D46: 21.7 | E46: 4.3 | F46: 5.4 | G46: 37 | H46: 1018 | I46: 0 | J46: 0 | K46: 0 | L46: 0 | M46: 3.5 | N46: 127 | O46: 21 | P46: 21.2 | Q46: 00:37:00 | AB46: 0.03636363636 | AD46: 315 | AF46: 2
B47: 21.7 | C47: 62 | D47: 21.7 | E47: 4 | F47: 5.4 | G47: 48 | H47: 1018.3 | I47: 0 | J47: 0 | K47: 0 | L47: 0 | M47: 3.5 | N47: 127 | O47: 21 | P47: 21.2 | Q47: 00:38:00 | AB47: 0.01818181818 | AD47: 337 | AF47: 1
B48: 21.7 | C48: 62 | D48: 21.7 | E48: 2.9 | F48: 3.6 | G48: 11 | H48: 1018.1 | I48: 0 | J48: 0 | K48: 0 | L48: 0 | M48: 3.5 | N48: 127 | O48: 21 | P48: 21.2 | Q48: 00:39:00
B49: 21.6 | C49: 63 | D49: 21.6 | E49: 2.9 | F49: 3.6 | G49: 30 | H49: 1018.1 | I49: 0 | J49: 0 | K49: 0 | L49: 0 | M49: 3.5 | N49: 127 | O49: 21 | P49: 21.1 | Q49: 00:40:00
B50: 21.6 | C50: 63 | D50: 21.6 | E50: 2.9 | F50: 3.6 | G50: 24 | H50: 1018.2 | I50: 0 | J50: 0 | K50: 0 | L50: 0 | M50: 3.5 | N50: 127 | O50: 20.9 | P50: 21.1 | Q50: 00:41:00
B51: 21.6 | C51: 63 | D51: 21.6 | E51: 3.6 | F51: 5.4 | G51: 37 | H51: 1018.2 | I51: 0 | J51: 0 | K51: 0 | L51: 0 | M51: 3.5 | N51: 127 | O51: 20.9 | P51: 21.1 | Q51: 00:42:00
B52: 21.6 | C52: 63 | D52: 21.6 | E52: 1.4 | F52: 1.8 | G52: 42 | H52: 1018.2 | I52: 0 | J52: 0 | K52: 0 | L52: 0 | M52: 3.5 | N52: 127 | O52: 20.9 | P52: 21.1 | Q52: 00:43:00
B53: 21.6 | C53: 63 | D53: 21.6 | E53: 4.3 | F53: 5.4 | G53: 12 | H53: 1018.2 | I53: 0 | J53: 0 | K53: 0 | L53: 0 | M53: 3.5 | N53: 127 | O53: 20.8 | P53: 21 | Q53: 00:44:00
B54: 21.6 | C54: 62 | D54: 21.6 | E54: 4.3 | F54: 5.4 | G54: 32 | H54: 1018.3 | I54: 0 | J54: 0 | K54: 0 | L54: 0 | M54: 3.5 | N54: 127 | O54: 20.8 | P54: 21 | Q54: 00:45:00
B55: 21.6 | C55: 62 | D55: 21.6 | E55: 2.2 | F55: 3.6 | G55: 54 | H55: 1018.3 | I55: 0 | J55: 0 | K55: 0 | L55: 0 | M55: 3.5 | N55: 127 | O55: 20.8 | P55: 20.9 | Q55: 00:46:00
B56: 21.6 | C56: 62 | D56: 21.6 | E56: 3.6 | F56: 3.6 | G56: 15 | H56: 1018.5 | I56: 0 | J56: 0 | K56: 0 | L56: 0 | M56: 3.5 | N56: 127 | O56: 20.7 | P56: 20.9 | Q56: 00:47:00
B57: 21.6 | C57: 62 | D57: 21.6 | E57: 5.8 | F57: 7.2 | G57: 10 | H57: 1018.3 | I57: 0 | J57: 0 | K57: 0 | L57: 0 | M57: 3.5 | N57: 127 | O57: 20.8 | P57: 20.9 | Q57: 00:48:00
B58: 21.6 | C58: 62 | D58: 21.6 | E58: 3.6 | F58: 3.6 | G58: 32 | H58: 1018.4 | I58: 0 | J58: 0 | K58: 0 | L58: 0 | M58: 3.5 | N58: 127 | O58: 20.7 | P58: 20.9 | Q58: 00:49:00
B59: 21.6 | C59: 62 | D59: 21.6 | E59: 3.6 | F59: 5.4 | G59: 354 | H59: 1018.6 | I59: 0 | J59: 0 | K59: 0 | L59: 0 | M59: 3.5 | N59: 127 | O59: 20.7 | P59: 20.9 | Q59: 00:50:00
B60: 21.6 | C60: 62 | D60: 21.6 | E60: 3.6 | F60: 5.4 | G60: 29 | H60: 1018.3 | I60: 0 | J60: 0 | K60: 0 | L60: 0 | M60: 3.5 | N60: 127 | O60: 20.7 | P60: 20.9 | Q60: 00:51:00
B61: 21.6 | C61: 62 | D61: 21.6 | E61: 4.3 | F61: 5.4 | G61: 20 | H61: 1018.6 | I61: 0 | J61: 0 | K61: 0 | L61: 0 | M61: 3.5 | N61: 127 | O61: 20.7 | P61: 20.8 | Q61: 00:52:00
B62: 21.6 | C62: 63 | D62: 21.6 | E62: 3.6 | F62: 3.6 | G62: 32 | H62: 1018.4 | I62: 0 | J62: 0 | K62: 0 | L62: 0 | M62: 3.5 | N62: 127 | O62: 20.7 | P62: 20.8 | Q62: 00:53:00
B63: 21.6 | C63: 63 | D63: 21.6 | E63: 2.2 | F63: 3.6 | G63: 35 | H63: 1018.6 | I63: 0 | J63: 0 | K63: 0 | L63: 0 | M63: 3.5 | N63: 127 | O63: 20.7 | P63: 20.8 | Q63: 00:54:00
B64: 21.6 | C64: 63 | D64: 21.6 | E64: 3.6 | F64: 3.6 | G64: 12 | H64: 1018.4 | I64: 0 | J64: 0 | K64: 0 | L64: 0 | M64: 3.5 | N64: 127 | O64: 20.7 | P64: 20.8 | Q64: 00:55:00
B65: 21.6 | C65: 63 | D65: 21.6 | E65: 3.2 | F65: 3.6 | G65: 42 | H65: 1018.5 | I65: 0 | J65: 0 | K65: 0 | L65: 0 | M65: 3.5 | N65: 127 | O65: 20.7 | P65: 20.8 | Q65: 00:56:00
B66: 21.6 | C66: 63 | D66: 21.6 | E66: 3.2 | F66: 3.6 | G66: 28 | H66: 1018.6 | I66: 0 | J66: 0 | K66: 0 | L66: 0 | M66: 3.5 | N66: 127 | O66: 20.7 | P66: 20.8 | Q66: 00:57:00
B67: 21.6 | C67: 63 | D67: 21.6 | E67: 4.7 | F67: 5.4 | G67: 26 | H67: 1018.7 | I67: 0 | J67: 0 | K67: 0 | L67: 0 | M67: 3.5 | N67: 127 | O67: 20.7 | P67: 20.8 | Q67: 00:58:00
B68: 21.6 | C68: 63 | D68: 21.6 | E68: 4 | F68: 5.4 | G68: 30 | H68: 1018.4 | I68: 0 | J68: 0 | K68: 0 | L68: 0 | M68: 3.5 | N68: 127 | O68: 20.7 | P68: 20.8 | Q68: 00:59:00
B69: 21.5 | C69: 63 | D69: 21.5 | E69: 5.4 | F69: 5.4 | G69: 11 | H69: 1018.8 | I69: 0 | J69: 0 | K69: 0 | L69: 0 | M69: 3.5 | N69: 127 | O69: 20.7 | P69: 20.8 | Q69: 01:00:00
B70: 21.5 | C70: 63 | D70: 21.5 | E70: 5.4 | F70: 5.4 | G70: 349 | H70: 1018.6 | I70: 0 | J70: 0 | K70: 0 | L70: 0 | M70: 3.5 | N70: 127 | O70: 20.7 | P70: 20.7 | Q70: 01:01:00
B71: 21.5 | C71: 63 | D71: 21.5 | E71: 4.3 | F71: 5.4 | G71: 358 | H71: 1018.7 | I71: 0 | J71: 0 | K71: 0 | L71: 0 | M71: 3.5 | N71: 127 | O71: 20.7 | P71: 20.7 | Q71: 01:02:00
B72: 21.5 | C72: 63 | D72: 21.5 | E72: 5.4 | F72: 7.2 | G72: 8 | H72: 1018.8 | I72: 0 | J72: 0 | K72: 0 | L72: 0 | M72: 3.5 | N72: 127 | O72: 20.6 | P72: 20.7 | Q72: 01:03:00
B73: 21.5 | C73: 63 | D73: 21.5 | E73: 4.3 | F73: 5.4 | G73: 1 | H73: 1018.7 | I73: 0 | J73: 0 | K73: 0 | L73: 0 | M73: 3.5 | N73: 127 | O73: 20.6 | P73: 20.7 | Q73: 01:04:00
B74: 21.5 | C74: 63 | D74: 21.5 | E74: 4.7 | F74: 7.2 | G74: 10 | H74: 1018.8 | I74: 0 | J74: 0 | K74: 0 | L74: 0 | M74: 3.5 | N74: 127 | O74: 20.7 | P74: 20.7 | Q74: 01:05:00
B75: 21.5 | C75: 63 | D75: 21.5 | E75: 4.7 | F75: 7.2 | G75: 9 | H75: 1018.5 | I75: 0 | J75: 0 | K75: 0 | L75: 0 | M75: 3.5 | N75: 127 | O75: 20.7 | P75: 20.7 | Q75: 01:06:00 | U75: =IF(J75>0,60,"") -> 
B76: 21.5 | C76: 62 | D76: 21.5 | E76: 4.3 | F76: 5.4 | G76: 355 | H76: 1018.9 | I76: 0 | J76: 0 | K76: 0 | L76: 0 | M76: 3.5 | N76: 127 | O76: 20.7 | P76: 20.7 | Q76: 01:07:00
B77: 21.5 | C77: 62 | D77: 21.5 | E77: 6.1 | F77: 7.2 | G77: 355 | H77: 1018.7 | I77: 0 | J77: 0 | K77: 0 | L77: 0 | M77: 3.5 | N77: 127 | O77: 20.6 | P77: 20.7 | Q77: 01:08:00
B78: 21.5 | C78: 62 | D78: 21.5 | E78: 4 | F78: 5.4 | G78: 351 | H78: 1018.6 | I78: 0 | J78: 0 | K78: 0 | L78: 0 | M78: 3.5 | N78: 127 | O78: 20.6 | P78: 20.7 | Q78: 01:09:00
B79: 21.6 | C79: 62 | D79: 21.6 | E79: 4 | F79: 5.4 | G79: 343 | H79: 1018.6 | I79: 0 | J79: 0 | K79: 0 | L79: 0 | M79: 3.5 | N79: 127 | O79: 20.6 | P79: 20.7 | Q79: 01:10:00
B80: 21.6 | C80: 62 | D80: 21.6 | E80: 4.7 | F80: 7.2 | G80: 48 | H80: 1018.6 | I80: 0 | J80: 0 | K80: 0 | L80: 0 | M80: 3.5 | N80: 127 | O80: 20.7 | P80: 20.7 | Q80: 01:11:00
B81: 21.6 | C81: 63 | D81: 21.6 | E81: 2.9 | F81: 3.6 | G81: 42 | H81: 1018.7 | I81: 0 | J81: 0 | K81: 0 | L81: 0 | M81: 3.5 | N81: 127 | O81: 20.7 | P81: 20.7 | Q81: 01:12:00
B82: 21.5 | C82: 63 | D82: 21.5 | E82: 3.2 | F82: 3.6 | G82: 38 | H82: 1018.7 | I82: 0 | J82: 0 | K82: 0 | L82: 0 | M82: 3.5 | N82: 127 | O82: 20.7 | P82: 20.7 | Q82: 01:13:00
B83: 21.5 | C83: 63 | D83: 21.5 | E83: 2.9 | F83: 3.6 | G83: 9 | H83: 1018.5 | I83: 0 | J83: 0 | K83: 0 | L83: 0 | M83: 3.5 | N83: 127 | O83: 20.6 | P83: 20.6 | Q83: 01:14:00
B84: 21.5 | C84: 63 | D84: 21.5 | E84: 5.4 | F84: 7.2 | G84: 34 | H84: 1018.4 | I84: 0 | J84: 0 | K84: 0 | L84: 0 | M84: 3.5 | N84: 127 | O84: 20.6 | P84: 20.7 | Q84: 01:15:00
B85: 21.4 | C85: 63 | D85: 21.4 | E85: 3.6 | F85: 3.6 | G85: 14 | H85: 1018.6 | I85: 0 | J85: 0 | K85: 0 | L85: 0 | M85: 3.5 | N85: 127 | O85: 20.6 | P85: 20.7 | Q85: 01:16:00
B86: 21.4 | C86: 63 | D86: 21.4 | E86: 4 | F86: 5.4 | G86: 49 | H86: 1018.7 | I86: 0 | J86: 0 | K86: 0 | L86: 0 | M86: 3.5 | N86: 127 | O86: 20.6 | P86: 20.6 | Q86: 01:17:00
B87: 21.4 | C87: 63 | D87: 21.4 | E87: 1.8 | F87: 1.8 | G87: 41 | H87: 1018.6 | I87: 0 | J87: 0 | K87: 0 | L87: 0 | M87: 3.5 | N87: 127 | O87: 20.6 | P87: 20.6 | Q87: 01:18:00
B88: 21.4 | C88: 63 | D88: 21.4 | E88: 4.3 | F88: 5.4 | G88: 16 | H88: 1018.6 | I88: 0 | J88: 0 | K88: 0 | L88: 0 | M88: 3.5 | N88: 127 | O88: 20.6 | P88: 20.6 | Q88: 01:19:00
B89: 21.4 | C89: 63 | D89: 21.4 | E89: 3.6 | F89: 5.4 | G89: 53 | H89: 1018.7 | I89: 0 | J89: 0 | K89: 0 | L89: 0 | M89: 3.5 | N89: 127 | O89: 20.6 | P89: 20.6 | Q89: 01:20:00
B90: 21.3 | C90: 63 | D90: 21.3 | E90: 4.3 | F90: 5.4 | G90: 23 | H90: 1018.5 | I90: 0 | J90: 0 | K90: 0 | L90: 0 | M90: 3.5 | N90: 127 | O90: 20.6 | P90: 20.6 | Q90: 01:21:00
B91: 21.4 | C91: 63 | D91: 21.4 | E91: 5.8 | F91: 7.2 | G91: 32 | H91: 1018.7 | I91: 0 | J91: 0 | K91: 0 | L91: 0 | M91: 3.5 | N91: 127 | O91: 20.6 | P91: 20.6 | Q91: 01:22:00
B92: 21.4 | C92: 63 | D92: 21.4 | E92: 3.6 | F92: 3.6 | G92: 16 | H92: 1018.6 | I92: 0 | J92: 0 | K92: 0 | L92: 0 | M92: 3.5 | N92: 127 | O92: 20.6 | P92: 20.6 | Q92: 01:23:00
B93: 21.4 | C93: 64 | D93: 21.4 | E93: 3.6 | F93: 3.6 | G93: 31 | H93: 1018.4 | I93: 0 | J93: 0 | K93: 0 | L93: 0 | M93: 3.5 | N93: 127 | O93: 20.6 | P93: 20.6 | Q93: 01:24:00
B94: 21.3 | C94: 64 | D94: 21.3 | E94: 4 | F94: 5.4 | G94: 34 | H94: 1018.7 | I94: 0 | J94: 0 | K94: 0 | L94: 0 | M94: 3.5 | N94: 127 | O94: 20.6 | P94: 20.6 | Q94: 01:25:00
B95: 21.2 | C95: 64 | D95: 21.2 | E95: 3.6 | F95: 3.6 | G95: 11 | H95: 1018.5 | I95: 0 | J95: 0 | K95: 0 | L95: 0 | M95: 3.5 | N95: 127 | O95: 20.6 | P95: 20.6 | Q95: 01:26:00
B96: 21.2 | C96: 64 | D96: 21.2 | E96: 3.6 | F96: 3.6 | G96: 42 | H96: 1018.5 | I96: 0 | J96: 0 | K96: 0 | L96: 0 | M96: 3.5 | N96: 127 | O96: 20.5 | P96: 20.6 | Q96: 01:27:00
B97: 21.1 | C97: 65 | D97: 21.1 | E97: 2.9 | F97: 3.6 | G97: 29 | H97: 1018.4 | I97: 0 | J97: 0 | K97: 0 | L97: 0 | M97: 3.5 | N97: 127 | O97: 20.5 | P97: 20.6 | Q97: 01:28:00
B98: 21 | C98: 65 | D98: 21 | E98: 2.9 | F98: 3.6 | G98: 17 | H98: 1018.3 | I98: 0 | J98: 0 | K98: 0 | L98: 0 | M98: 3.5 | N98: 127 | O98: 20.5 | P98: 20.5 | Q98: 01:29:00
B99: 21 | C99: 65 | D99: 21 | E99: 3.2 | F99: 3.6 | G99: 23 | H99: 1018.3 | I99: 0 | J99: 0 | K99: 0 | L99: 0 | M99: 3.5 | N99: 127 | O99: 20.5 | P99: 20.5 | Q99: 01:30:00
B100: 20.9 | C100: 65 | D100: 20.9 | E100: 1.1 | F100: 1.8 | G100: 30 | H100: 1018.5 | I100: 0 | J100: 0 | K100: 0 | L100: 0 | M100: 3.5 | N100: 127 | O100: 20.4 | P100: 20.5 | Q100: 01:31:00
B101: 20.9 | C101: 65 | D101: 20.9 | E101: 4 | F101: 5.4 | G101: 48 | H101: 1018.3 | I101: 0 | J101: 0 | K101: 0 | L101: 0 | M101: 3.5 | N101: 127 | O101: 20.4 | P101: 20.5 | Q101: 01:32:00
B102: 20.8 | C102: 65 | D102: 20.8 | E102: 4 | F102: 5.4 | G102: 53 | H102: 1018.6 | I102: 0 | J102: 0 | K102: 0 | L102: 0 | M102: 3.5 | N102: 127 | O102: 20.4 | P102: 20.4 | Q102: 01:33:00
B103: 20.8 | C103: 65 | D103: 20.8 | E103: 4.7 | F103: 7.2 | G103: 20 | H103: 1018.4 | I103: 0 | J103: 0 | K103: 0 | L103: 0 | M103: 3.5 | N103: 127 | O103: 20.4 | P103: 20.4 | Q103: 01:34:00
B104: 20.8 | C104: 65 | D104: 20.8 | E104: 2.2 | F104: 3.6 | G104: 17 | H104: 1018.2 | I104: 0 | J104: 0 | K104: 0 | L104: 0 | M104: 3.5 | N104: 127 | O104: 20.4 | P104: 20.4 | Q104: 01:35:00
B105: 20.8 | C105: 65 | D105: 20.8 | E105: 4.7 | F105: 5.4 | G105: 16 | H105: 1018.3 | I105: 0 | J105: 0 | K105: 0 | L105: 0 | M105: 3.5 | N105: 127 | O105: 20.4 | P105: 20.4 | Q105: 01:36:00
B106: 20.8 | C106: 65 | D106: 20.8 | E106: 4 | F106: 5.4 | G106: 20 | H106: 1018.3 | I106: 0 | J106: 0 | K106: 0 | L106: 0 | M106: 3.5 | N106: 127 | O106: 20.4 | P106: 20.4 | Q106: 01:37:00
B107: 20.8 | C107: 65 | D107: 20.8 | E107: 4 | F107: 5.4 | G107: 16 | H107: 1018.4 | I107: 0 | J107: 0 | K107: 0 | L107: 0 | M107: 3.5 | N107: 127 | O107: 20.4 | P107: 20.4 | Q107: 01:38:00
B108: 20.8 | C108: 65 | D108: 20.8 | E108: 4.7 | F108: 5.4 | G108: 346 | H108: 1018.2 | I108: 0 | J108: 0 | K108: 0 | L108: 0 | M108: 3.5 | N108: 127 | O108: 20.3 | P108: 20.3 | Q108: 01:39:00
B109: 20.9 | C109: 65 | D109: 20.9 | E109: 4.3 | F109: 5.4 | G109: 45 | H109: 1018.3 | I109: 0 | J109: 0 | K109: 0 | L109: 0 | M109: 3.5 | N109: 127 | O109: 20.3 | P109: 20.3 | Q109: 01:40:00
B110: 20.9 | C110: 65 | D110: 20.9 | E110: 0.7 | F110: 1.8 | G110: 43 | H110: 1018.2 | I110: 0 | J110: 0 | K110: 0 | L110: 0 | M110: 3.5 | N110: 127 | O110: 20.3 | P110: 20.3 | Q110: 01:41:00
B111: 20.9 | C111: 65 | D111: 20.9 | E111: 2.9 | F111: 3.6 | G111: 26 | H111: 1018.3 | I111: 0 | J111: 0 | K111: 0 | L111: 0 | M111: 3.5 | N111: 127 | O111: 20.3 | P111: 20.3 | Q111: 01:42:00
B112: 20.8 | C112: 65 | D112: 20.8 | E112: 2.9 | F112: 3.6 | G112: 36 | H112: 1018.2 | I112: 0 | J112: 0 | K112: 0 | L112: 0 | M112: 3.5 | N112: 127 | O112: 20.3 | P112: 20.3 | Q112: 01:43:00
B113: 20.8 | C113: 65 | D113: 20.8 | E113: 4.3 | F113: 7.2 | G113: 6 | H113: 1018.3 | I113: 0 | J113: 0 | K113: 0 | L113: 0 | M113: 3.5 | N113: 127 | O113: 20.3 | P113: 20.3 | Q113: 01:44:00
B114: 20.8 | C114: 66 | D114: 20.8 | E114: 6.1 | F114: 9.4 | G114: 1 | H114: 1018.1 | I114: 0 | J114: 0 | K114: 0 | L114: 0 | M114: 3.5 | N114: 127 | O114: 20.3 | P114: 20.3 | Q114: 01:45:00
B115: 20.7 | C115: 66 | D115: 20.7 | E115: 6.5 | F115: 11.2 | G115: 22 | H115: 1018.1 | I115: 0 | J115: 0 | K115: 0 | L115: 0 | M115: 3.5 | N115: 127 | O115: 20.2 | P115: 20.2 | Q115: 01:46:00
B116: 20.7 | C116: 67 | D116: 20.7 | E116: 5.8 | F116: 7.2 | G116: 6 | H116: 1018.1 | I116: 0 | J116: 0 | K116: 0 | L116: 0 | M116: 3.5 | N116: 127 | O116: 20.2 | P116: 20.2 | Q116: 01:47:00
B117: 20.6 | C117: 67 | D117: 20.6 | E117: 6.1 | F117: 7.2 | G117: 7 | H117: 1018.3 | I117: 0 | J117: 0 | K117: 0 | L117: 0 | M117: 3.5 | N117: 127 | O117: 20.2 | P117: 20.2 | Q117: 01:48:00
B118: 20.5 | C118: 67 | D118: 20.5 | E118: 5 | F118: 5.4 | G118: 6 | H118: 1017.9 | I118: 0 | J118: 0 | K118: 0 | L118: 0 | M118: 3.5 | N118: 127 | O118: 20.2 | P118: 20.2 | Q118: 01:49:00
B119: 20.5 | C119: 67 | D119: 20.5 | E119: 6.1 | F119: 7.2 | G119: 22 | H119: 1018 | I119: 0 | J119: 0 | K119: 0 | L119: 0 | M119: 3.5 | N119: 127 | O119: 20.2 | P119: 20.1 | Q119: 01:50:00
B120: 20.4 | C120: 67 | D120: 20.4 | E120: 4.7 | F120: 5.4 | G120: 13 | H120: 1017.8 | I120: 0 | J120: 0 | K120: 0 | L120: 0 | M120: 3.5 | N120: 127 | O120: 20.2 | P120: 20.1 | Q120: 01:51:00
B121: 20.4 | C121: 67 | D121: 20.4 | E121: 6.8 | F121: 7.2 | G121: 13 | H121: 1018.1 | I121: 0 | J121: 0 | K121: 0 | L121: 0 | M121: 3.5 | N121: 127 | O121: 20.1 | P121: 20.1 | Q121: 01:52:00
B122: 20.3 | C122: 68 | D122: 20.3 | E122: 6.1 | F122: 7.2 | G122: 44 | H122: 1018 | I122: 0 | J122: 0 | K122: 0 | L122: 0 | M122: 3.5 | N122: 127 | O122: 20.1 | P122: 20.1 | Q122: 01:53:00
B123: 20.3 | C123: 68 | D123: 20.3 | E123: 7.6 | F123: 9.4 | G123: 3 | H123: 1018 | I123: 0 | J123: 0 | K123: 0 | L123: 0 | M123: 3.5 | N123: 127 | O123: 20.1 | P123: 20.1 | Q123: 01:54:00
B124: 20.2 | C124: 68 | D124: 20.2 | E124: 5.8 | F124: 9.4 | G124: 11 | H124: 1017.8 | I124: 0 | J124: 0 | K124: 0 | L124: 0 | M124: 3.5 | N124: 127 | O124: 20 | P124: 20 | Q124: 01:55:00
B125: 20.1 | C125: 68 | D125: 20.1 | E125: 4.7 | F125: 5.4 | G125: 12 | H125: 1017.9 | I125: 0 | J125: 0 | K125: 0 | L125: 0 | M125: 3.5 | N125: 127 | O125: 20 | P125: 20 | Q125: 01:56:00
B126: 20.1 | C126: 68 | D126: 20.1 | E126: 5 | F126: 5.4 | G126: 7 | H126: 1017.8 | I126: 0 | J126: 0 | K126: 0 | L126: 0 | M126: 3.5 | N126: 127 | O126: 19.9 | P126: 20 | Q126: 01:57:00
B127: 20.1 | C127: 68 | D127: 20.1 | E127: 4 | F127: 5.4 | G127: 34 | H127: 1018.1 | I127: 0 | J127: 0 | K127: 0 | L127: 0 | M127: 3.5 | N127: 127 | O127: 19.9 | P127: 19.9 | Q127: 01:58:00
B128: 20.1 | C128: 68 | D128: 20.1 | E128: 4 | F128: 5.4 | G128: 22 | H128: 1017.9 | I128: 0 | J128: 0 | K128: 0 | L128: 0 | M128: 3.5 | N128: 127 | O128: 19.9 | P128: 19.9 | Q128: 01:59:00
B129: 20.1 | C129: 68 | D129: 20.1 | E129: 5.4 | F129: 7.2 | G129: 21 | H129: 1017.7 | I129: 0 | J129: 0 | K129: 0 | L129: 0 | M129: 3.5 | N129: 127 | O129: 19.8 | P129: 19.9 | Q129: 02:00:00
B130: 20 | C130: 68 | D130: 20 | E130: 4.3 | F130: 5.4 | G130: 27 | H130: 1017.6 | I130: 0 | J130: 0 | K130: 0 | L130: 0 | M130: 3.5 | N130: 127 | O130: 19.8 | P130: 19.8 | Q130: 02:01:00
B131: 20 | C131: 68 | D131: 20 | E131: 4.3 | F131: 5.4 | G131: 10 | H131: 1017.9 | I131: 0 | J131: 0 | K131: 0 | L131: 0 | M131: 3.5 | N131: 127 | O131: 19.8 | P131: 19.8 | Q131: 02:02:00
B132: 20 | C132: 68 | D132: 20 | E132: 4 | F132: 5.4 | G132: 30 | H132: 1017.9 | I132: 0 | J132: 0 | K132: 0 | L132: 0 | M132: 3.5 | N132: 127 | O132: 19.7 | P132: 19.8 | Q132: 02:03:00
B133: 20 | C133: 68 | D133: 20 | E133: 6.5 | F133: 7.2 | G133: 9 | H133: 1017.7 | I133: 0 | J133: 0 | K133: 0 | L133: 0 | M133: 3.5 | N133: 127 | O133: 19.7 | P133: 19.7 | Q133: 02:04:00
B134: 20 | C134: 68 | D134: 20 | E134: 7.2 | F134: 9.4 | G134: 9 | H134: 1017.7 | I134: 0 | J134: 0 | K134: 0 | L134: 0 | M134: 3.5 | N134: 127 | O134: 19.7 | P134: 19.7 | Q134: 02:05:00
B135: 20 | C135: 68 | D135: 20 | E135: 4.7 | F135: 5.4 | G135: 23 | H135: 1017.7 | I135: 0 | J135: 0 | K135: 0 | L135: 0 | M135: 3.5 | N135: 127 | O135: 19.7 | P135: 19.7 | Q135: 02:06:00
B136: 20 | C136: 68 | D136: 20 | E136: 5.4 | F136: 7.2 | G136: 28 | H136: 1017.8 | I136: 0 | J136: 0 | K136: 0 | L136: 0 | M136: 3.5 | N136: 127 | O136: 19.6 | P136: 19.7 | Q136: 02:07:00
B137: 19.9 | C137: 68 | D137: 19.9 | E137: 4.3 | F137: 5.4 | G137: 14 | H137: 1017.6 | I137: 0 | J137: 0 | K137: 0 | L137: 0 | M137: 3.5 | N137: 127 | O137: 19.6 | P137: 19.6 | Q137: 02:08:00
B138: 19.9 | C138: 68 | D138: 19.9 | E138: 4.3 | F138: 5.4 | G138: 13 | H138: 1017.7 | I138: 0 | J138: 0 | K138: 0 | L138: 0 | M138: 3.5 | N138: 127 | O138: 19.6 | P138: 19.6 | Q138: 02:09:00
B139: 20 | C139: 68 | D139: 20 | E139: 5 | F139: 7.2 | G139: 357 | H139: 1017.7 | I139: 0 | J139: 0 | K139: 0 | L139: 0 | M139: 3.5 | N139: 127 | O139: 19.5 | P139: 19.6 | Q139: 02:10:00 | U139: =IF(J139>0,60,"") -> 
B140: 20 | C140: 68 | D140: 20 | E140: 2.9 | F140: 3.6 | G140: 41 | H140: 1017.7 | I140: 0 | J140: 0 | K140: 0 | L140: 0 | M140: 3.5 | N140: 127 | O140: 19.5 | P140: 19.6 | Q140: 02:11:00
B141: 20 | C141: 68 | D141: 20 | E141: 2.9 | F141: 3.6 | G141: 28 | H141: 1017.4 | I141: 0 | J141: 0 | K141: 0 | L141: 0 | M141: 3.5 | N141: 127 | O141: 19.5 | P141: 19.5 | Q141: 02:12:00
B142: 20 | C142: 68 | D142: 20 | E142: 3.6 | F142: 5.4 | G142: 40 | H142: 1017.3 | I142: 0 | J142: 0 | K142: 0 | L142: 0 | M142: 3.5 | N142: 127 | O142: 19.4 | P142: 19.5 | Q142: 02:13:00
B143: 20 | C143: 68 | D143: 20 | E143: 5.4 | F143: 5.4 | G143: 17 | H143: 1017.6 | I143: 0 | J143: 0 | K143: 0 | L143: 0 | M143: 3.5 | N143: 127 | O143: 19.4 | P143: 19.5 | Q143: 02:14:00
B144: 20 | C144: 68 | D144: 20 | E144: 6.5 | F144: 9.4 | G144: 22 | H144: 1017.4 | I144: 0 | J144: 0 | K144: 0 | L144: 0 | M144: 3.5 | N144: 127 | O144: 19.4 | P144: 19.5 | Q144: 02:15:00
B145: 20 | C145: 68 | D145: 20 | E145: 4.3 | F145: 7.2 | G145: 17 | H145: 1017.3 | I145: 0 | J145: 0 | K145: 0 | L145: 0 | M145: 3.5 | N145: 127 | O145: 19.4 | P145: 19.5 | Q145: 02:16:00
B146: 20 | C146: 68 | D146: 20 | E146: 5.8 | F146: 7.2 | G146: 8 | H146: 1017.4 | I146: 0 | J146: 0 | K146: 0 | L146: 0 | M146: 3.5 | N146: 127 | O146: 19.4 | P146: 19.4 | Q146: 02:17:00
B147: 20.1 | C147: 68 | D147: 20.1 | E147: 4 | F147: 5.4 | G147: 9 | H147: 1017.4 | I147: 0 | J147: 0 | K147: 0 | L147: 0 | M147: 3.5 | N147: 127 | O147: 19.3 | P147: 19.4 | Q147: 02:18:00
B148: 20.1 | C148: 68 | D148: 20.1 | E148: 6.1 | F148: 7.2 | G148: 353 | H148: 1017.5 | I148: 0 | J148: 0 | K148: 0 | L148: 0 | M148: 3.5 | N148: 127 | O148: 19.4 | P148: 19.4 | Q148: 02:19:00
B149: 20.1 | C149: 68 | D149: 20.1 | E149: 2.9 | F149: 5.4 | G149: 358 | H149: 1017.6 | I149: 0 | J149: 0 | K149: 0 | L149: 0 | M149: 3.5 | N149: 127 | O149: 19.3 | P149: 19.4 | Q149: 02:20:00
B150: 20.1 | C150: 68 | D150: 20.1 | E150: 5.4 | F150: 7.2 | G150: 10 | H150: 1017.4 | I150: 0 | J150: 0 | K150: 0 | L150: 0 | M150: 3.5 | N150: 127 | O150: 19.3 | P150: 19.4 | Q150: 02:21:00
B151: 20.1 | C151: 67 | D151: 20.1 | E151: 4.7 | F151: 5.4 | G151: 21 | H151: 1017.7 | I151: 0 | J151: 0 | K151: 0 | L151: 0 | M151: 3.5 | N151: 127 | O151: 19.3 | P151: 19.4 | Q151: 02:22:00
B152: 20.1 | C152: 68 | D152: 20.1 | E152: 4.7 | F152: 5.4 | G152: 33 | H152: 1017.4 | I152: 0 | J152: 0 | K152: 0 | L152: 0 | M152: 3.5 | N152: 127 | O152: 19.3 | P152: 19.4 | Q152: 02:23:00
B153: 20.1 | C153: 68 | D153: 20.1 | E153: 3.6 | F153: 3.6 | G153: 17 | H153: 1017.4 | I153: 0 | J153: 0 | K153: 0 | L153: 0 | M153: 3.5 | N153: 127 | O153: 19.3 | P153: 19.4 | Q153: 02:24:00
B154: 20 | C154: 68 | D154: 20 | E154: 5.8 | F154: 7.2 | G154: 6 | H154: 1017.3 | I154: 0 | J154: 0 | K154: 0 | L154: 0 | M154: 3.5 | N154: 127 | O154: 19.3 | P154: 19.4 | Q154: 02:25:00
B155: 20 | C155: 68 | D155: 20 | E155: 4.3 | F155: 5.4 | G155: 10 | H155: 1017.5 | I155: 0 | J155: 0 | K155: 0 | L155: 0 | M155: 3.5 | N155: 127 | O155: 19.3 | P155: 19.4 | Q155: 02:26:00
B156: 19.9 | C156: 68 | D156: 19.9 | E156: 6.5 | F156: 9.4 | G156: 16 | H156: 1017.2 | I156: 0 | J156: 0 | K156: 0 | L156: 0 | M156: 3.5 | N156: 127 | O156: 19.3 | P156: 19.3 | Q156: 02:27:00
B157: 19.9 | C157: 68 | D157: 19.9 | E157: 2.2 | F157: 3.6 | G157: 24 | H157: 1017.3 | I157: 0 | J157: 0 | K157: 0 | L157: 0 | M157: 3.5 | N157: 127 | O157: 19.3 | P157: 19.3 | Q157: 02:28:00
B158: 19.9 | C158: 68 | D158: 19.9 | E158: 5.8 | F158: 7.2 | G158: 29 | H158: 1017.3 | I158: 0 | J158: 0 | K158: 0 | L158: 0 | M158: 3.5 | N158: 127 | O158: 19.3 | P158: 19.3 | Q158: 02:29:00
B159: 19.9 | C159: 68 | D159: 19.9 | E159: 2.2 | F159: 3.6 | G159: 31 | H159: 1017.1 | I159: 0 | J159: 0 | K159: 0 | L159: 0 | M159: 3.5 | N159: 127 | O159: 19.2 | P159: 19.3 | Q159: 02:30:00
B160: 19.9 | C160: 68 | D160: 19.9 | E160: 5 | F160: 5.4 | G160: 18 | H160: 1017.3 | I160: 0 | J160: 0 | K160: 0 | L160: 0 | M160: 3.5 | N160: 127 | O160: 19.2 | P160: 19.3 | Q160: 02:31:00
B161: 19.9 | C161: 68 | D161: 19.9 | E161: 6.1 | F161: 7.2 | G161: 346 | H161: 1017.4 | I161: 0 | J161: 0 | K161: 0 | L161: 0 | M161: 3.5 | N161: 127 | O161: 19.2 | P161: 19.2 | Q161: 02:32:00
B162: 19.9 | C162: 68 | D162: 19.9 | E162: 3.6 | F162: 3.6 | G162: 21 | H162: 1017.1 | I162: 0 | J162: 0 | K162: 0 | L162: 0 | M162: 3.5 | N162: 127 | O162: 19.2 | P162: 19.2 | Q162: 02:33:00
B163: 19.9 | C163: 68 | D163: 19.9 | E163: 2.9 | F163: 3.6 | G163: 21 | H163: 1017.2 | I163: 0 | J163: 0 | K163: 0 | L163: 0 | M163: 3.5 | N163: 127 | O163: 19.2 | P163: 19.2 | Q163: 02:34:00
B164: 19.8 | C164: 68 | D164: 19.8 | E164: 7.9 | F164: 11.2 | G164: 344 | H164: 1017 | I164: 0 | J164: 0 | K164: 0 | L164: 0 | M164: 3.5 | N164: 127 | O164: 19.1 | P164: 19.2 | Q164: 02:35:00
B165: 19.8 | C165: 68 | D165: 19.8 | E165: 6.1 | F165: 9.4 | G165: 352 | H165: 1017.1 | I165: 0 | J165: 0 | K165: 0 | L165: 0 | M165: 3.5 | N165: 127 | O165: 19.1 | P165: 19.2 | Q165: 02:36:00
B166: 19.8 | C166: 68 | D166: 19.8 | E166: 3.2 | F166: 3.6 | G166: 24 | H166: 1017.1 | I166: 0 | J166: 0 | K166: 0 | L166: 0 | M166: 3.5 | N166: 127 | O166: 19.1 | P166: 19.1 | Q166: 02:37:00
B167: 19.8 | C167: 68 | D167: 19.8 | E167: 5 | F167: 5.4 | G167: 9 | H167: 1017 | I167: 0 | J167: 0 | K167: 0 | L167: 0 | M167: 3.5 | N167: 127 | O167: 19.1 | P167: 19.1 | Q167: 02:38:00
B168: 19.8 | C168: 68 | D168: 19.8 | E168: 5 | F168: 7.2 | G168: 26 | H168: 1017.3 | I168: 0 | J168: 0 | K168: 0 | L168: 0 | M168: 3.5 | N168: 127 | O168: 19.1 | P168: 19.1 | Q168: 02:39:00
B169: 19.8 | C169: 68 | D169: 19.8 | E169: 5.4 | F169: 7.2 | G169: 41 | H169: 1017.2 | I169: 0 | J169: 0 | K169: 0 | L169: 0 | M169: 3.5 | N169: 127 | O169: 19.1 | P169: 19.1 | Q169: 02:40:00
B170: 19.7 | C170: 68 | D170: 19.7 | E170: 5 | F170: 5.4 | G170: 13 | H170: 1017 | I170: 0 | J170: 0 | K170: 0 | L170: 0 | M170: 3.5 | N170: 127 | O170: 19 | P170: 19.1 | Q170: 02:41:00
B171: 19.7 | C171: 68 | D171: 19.7 | E171: 4 | F171: 5.4 | G171: 15 | H171: 1017 | I171: 0 | J171: 0 | K171: 0 | L171: 0 | M171: 3.5 | N171: 127 | O171: 19 | P171: 19 | Q171: 02:42:00
B172: 19.7 | C172: 68 | D172: 19.7 | E172: 4 | F172: 5.4 | G172: 19 | H172: 1017.1 | I172: 0 | J172: 0 | K172: 0 | L172: 0 | M172: 3.5 | N172: 127 | O172: 19 | P172: 19 | Q172: 02:43:00
B173: 19.6 | C173: 69 | D173: 19.6 | E173: 6.5 | F173: 7.2 | G173: 12 | H173: 1017.1 | I173: 0 | J173: 0 | K173: 0 | L173: 0 | M173: 3.5 | N173: 127 | O173: 19 | P173: 19 | Q173: 02:44:00
B174: 19.6 | C174: 69 | D174: 19.6 | E174: 3.6 | F174: 3.6 | G174: 13 | H174: 1017.1 | I174: 0 | J174: 0 | K174: 0 | L174: 0 | M174: 3.5 | N174: 127 | O174: 19 | P174: 19 | Q174: 02:45:00
B175: 19.6 | C175: 69 | D175: 19.6 | E175: 6.1 | F175: 7.2 | G175: 15 | H175: 1017 | I175: 0 | J175: 0 | K175: 0 | L175: 0 | M175: 3.5 | N175: 127 | O175: 18.9 | P175: 19 | Q175: 02:46:00
B176: 19.5 | C176: 69 | D176: 19.5 | E176: 5.8 | F176: 7.2 | G176: 23 | H176: 1017 | I176: 0 | J176: 0 | K176: 0 | L176: 0 | M176: 3.5 | N176: 127 | O176: 18.9 | P176: 19 | Q176: 02:47:00
B177: 19.5 | C177: 69 | D177: 19.5 | E177: 4.7 | F177: 7.2 | G177: 21 | H177: 1016.9 | I177: 0 | J177: 0 | K177: 0 | L177: 0 | M177: 3.5 | N177: 127 | O177: 18.9 | P177: 19 | Q177: 02:48:00
B178: 19.5 | C178: 69 | D178: 19.5 | E178: 4.7 | F178: 5.4 | G178: 21 | H178: 1017.1 | I178: 0 | J178: 0 | K178: 0 | L178: 0 | M178: 3.5 | N178: 127 | O178: 18.9 | P178: 18.9 | Q178: 02:49:00
B179: 19.4 | C179: 69 | D179: 19.4 | E179: 3.6 | F179: 5.4 | G179: 50 | H179: 1017.1 | I179: 0 | J179: 0 | K179: 0 | L179: 0 | M179: 3.5 | N179: 127 | O179: 18.9 | P179: 18.9 | Q179: 02:50:00
B180: 19.4 | C180: 69 | D180: 19.4 | E180: 5.4 | F180: 5.4 | G180: 357 | H180: 1017.1 | I180: 0 | J180: 0 | K180: 0 | L180: 0 | M180: 3.5 | N180: 127 | O180: 18.8 | P180: 18.9 | Q180: 02:51:00
B181: 19.4 | C181: 69 | D181: 19.4 | E181: 4.7 | F181: 5.4 | G181: 26 | H181: 1017 | I181: 0 | J181: 0 | K181: 0 | L181: 0 | M181: 3.5 | N181: 127 | O181: 18.8 | P181: 18.8 | Q181: 02:52:00
B182: 19.4 | C182: 69 | D182: 19.4 | E182: 3.2 | F182: 5.4 | G182: 44 | H182: 1016.8 | I182: 0 | J182: 0 | K182: 0 | L182: 0 | M182: 3.5 | N182: 127 | O182: 18.8 | P182: 18.8 | Q182: 02:53:00
B183: 19.4 | C183: 69 | D183: 19.4 | E183: 2.9 | F183: 3.6 | G183: 25 | H183: 1017.1 | I183: 0 | J183: 0 | K183: 0 | L183: 0 | M183: 3.5 | N183: 127 | O183: 18.8 | P183: 18.8 | Q183: 02:54:00
B184: 19.4 | C184: 69 | D184: 19.4 | E184: 5.8 | F184: 7.2 | G184: 7 | H184: 1017 | I184: 0 | J184: 0 | K184: 0 | L184: 0 | M184: 3.5 | N184: 127 | O184: 18.7 | P184: 18.8 | Q184: 02:55:00
B185: 19.4 | C185: 69 | D185: 19.4 | E185: 4 | F185: 7.2 | G185: 19 | H185: 1016.9 | I185: 0 | J185: 0 | K185: 0 | L185: 0 | M185: 3.5 | N185: 127 | O185: 18.7 | P185: 18.8 | Q185: 02:56:00
B186: 19.4 | C186: 69 | D186: 19.4 | E186: 7.9 | F186: 9.4 | G186: 4 | H186: 1017.1 | I186: 0 | J186: 0 | K186: 0 | L186: 0 | M186: 3.5 | N186: 127 | O186: 18.7 | P186: 18.8 | Q186: 02:57:00
B187: 19.5 | C187: 68 | D187: 19.5 | E187: 4.7 | F187: 5.4 | G187: 18 | H187: 1017 | I187: 0 | J187: 0 | K187: 0 | L187: 0 | M187: 3.5 | N187: 127 | O187: 18.7 | P187: 18.8 | Q187: 02:58:00
B188: 19.5 | C188: 68 | D188: 19.5 | E188: 5.8 | F188: 7.2 | G188: 11 | H188: 1017.1 | I188: 0 | J188: 0 | K188: 0 | L188: 0 | M188: 3.5 | N188: 127 | O188: 18.7 | P188: 18.8 | Q188: 02:59:00
B189: 19.5 | C189: 68 | D189: 19.5 | E189: 6.8 | F189: 9.4 | G189: 7 | H189: 1017.1 | I189: 0 | J189: 0 | K189: 0 | L189: 0 | M189: 3.5 | N189: 127 | O189: 18.7 | P189: 18.8 | Q189: 03:00:00
B190: 19.5 | C190: 69 | D190: 19.5 | E190: 6.5 | F190: 7.2 | G190: 18 | H190: 1017.1 | I190: 0 | J190: 0 | K190: 0 | L190: 0 | M190: 3.5 | N190: 127 | O190: 18.7 | P190: 18.8 | Q190: 03:01:00
B191: 19.5 | C191: 69 | D191: 19.5 | E191: 5.8 | F191: 9.4 | G191: 6 | H191: 1017 | I191: 0 | J191: 0 | K191: 0 | L191: 0 | M191: 3.5 | N191: 127 | O191: 18.7 | P191: 18.8 | Q191: 03:02:00
B192: 19.5 | C192: 69 | D192: 19.5 | E192: 3.2 | F192: 3.6 | G192: 24 | H192: 1016.9 | I192: 0 | J192: 0 | K192: 0 | L192: 0 | M192: 3.5 | N192: 127 | O192: 18.7 | P192: 18.8 | Q192: 03:03:00
B193: 19.5 | C193: 69 | D193: 19.5 | E193: 6.5 | F193: 9.4 | G193: 354 | H193: 1016.8 | I193: 0 | J193: 0 | K193: 0 | L193: 0 | M193: 3.5 | N193: 127 | O193: 18.7 | P193: 18.7 | Q193: 03:04:00
B194: 19.5 | C194: 69 | D194: 19.5 | E194: 6.1 | F194: 7.2 | G194: 357 | H194: 1016.8 | I194: 0 | J194: 0 | K194: 0 | L194: 0 | M194: 3.5 | N194: 127 | O194: 18.7 | P194: 18.7 | Q194: 03:05:00
B195: 19.4 | C195: 69 | D195: 19.4 | E195: 5.4 | F195: 7.2 | G195: 17 | H195: 1016.8 | I195: 0 | J195: 0 | K195: 0 | L195: 0 | M195: 3.5 | N195: 127 | O195: 18.7 | P195: 18.7 | Q195: 03:06:00
B196: 19.4 | C196: 69 | D196: 19.4 | E196: 6.1 | F196: 7.2 | G196: 5 | H196: 1017 | I196: 0 | J196: 0 | K196: 0 | L196: 0 | M196: 3.5 | N196: 127 | O196: 18.7 | P196: 18.7 | Q196: 03:07:00
B197: 19.4 | C197: 69 | D197: 19.4 | E197: 4.3 | F197: 7.2 | G197: 3 | H197: 1016.8 | I197: 0 | J197: 0 | K197: 0 | L197: 0 | M197: 3.5 | N197: 127 | O197: 18.7 | P197: 18.8 | Q197: 03:08:00
B198: 19.4 | C198: 69 | D198: 19.4 | E198: 5.4 | F198: 5.4 | G198: 10 | H198: 1016.7 | I198: 0 | J198: 0 | K198: 0 | L198: 0 | M198: 3.5 | N198: 127 | O198: 18.7 | P198: 18.8 | Q198: 03:09:00
B199: 19.4 | C199: 69 | D199: 19.4 | E199: 6.8 | F199: 7.2 | G199: 19 | H199: 1016.8 | I199: 0 | J199: 0 | K199: 0 | L199: 0 | M199: 3.5 | N199: 127 | O199: 18.7 | P199: 18.7 | Q199: 03:10:00
B200: 19.4 | C200: 69 | D200: 19.4 | E200: 4.7 | F200: 7.2 | G200: 54 | H200: 1016.9 | I200: 0 | J200: 0 | K200: 0 | L200: 0 | M200: 3.5 | N200: 127 | O200: 18.7 | P200: 18.8 | Q200: 03:11:00
... 1134 more rows

Sheet MAI_2022
BB1: La Rochelle | BC1: http://www.meteociel.fr/climatologie/villes.php?code=7316&mois=4&annee=2022 | BN1: Ephéméride | BO1: http://www.ephemeride.com/calendrier/solaire/19/horaires-du-soleil.html
AD3: =$C$5 -> Mai_2022 | AG3: Hauteur de pluie en mm | AK3: Temps de précipitations par 1/4 de journée | AU3: =$C$5 -> Mai_2022 | AX3: Chaleur solaire | BB3: Marées | BC3: https://marine.meteoconsult.fr/meteo-marine/horaires-maree-la-tranche-sur-mer-1083-0.php
C5: Mai_2022 | F5: Mise à jour | H5: le | J5: =NOW() -> 2022-05-22T20:22:19.440 | U5: =C5 -> Mai_2022 | X5: =NOW() -> 2022-05-22T20:22:19.440 | AD5: Mise à jour | AG5: =SUM($AG$11:$AG$72) -> 3.5 | AI5: =SUM($AI$11:$AI$72) -> 0.1868055556 | AK5: =SUM(AK$11:AK$72) -> 0.1652777778 | AM5: =SUM(AM$11:AM$72) -> 0.02152777778 | AO5: =SUM(AO$11:AO$72) -> 0 | AQ5: =SUM(AQ$11:AQ$72) -> 0 | AU5: Mise à jour | AX5: =SUM(AX$11:AX$72) -> 11.32847222 | BB5: T° de l'eau | BC5: https://fr.surf-forecast.com/breaks/La-Tranchesur-Mer/seatemp | BN5: meteofloralies | BO5: https://www.wunderground.com/dashboard/pws/ILATRA6
C7: Températures | F7: =MIN(F11:F72) -> 18.2 | H7: =VLOOKUP($F$7,$F$11:$V$72,17,0) -> 2022-05-05 | J7: =MIN($J$11:$J$72) -> 8.7 | L7: =VLOOKUP($J$7,$J$11:$V$72,13,0) -> 2022-05-05 | N7: =MAX(N11:N55) -> 29.8 | P7: =VLOOKUP($N$7,$N$11:$V$72,9,0) -> 2022-05-18 | U7: Mise à jour | X7: Maxi | AD7: =TODAY() -> 2022-05-22 | AG7: =VLOOKUP($AG$9,$AG$11:$AV$72,16,0) -> 2022-05-15 | AI7: =VLOOKUP($AI$9,$AI$11:$AV$72,14,0) -> 2022-05-15 | AK7: Pluie AM | AM7: Pluie AM | AO7: Pluie AP | AQ7: Pluie AP | AU7: =TODAY() -> 2022-05-22 | AX7: =VLOOKUP($AX$9,$AX$11:$BB$72,5,0) -> 2022-05-17
F9: Ressentie | H9: =VLOOKUP($F$7,$F$11:$P$72,3,0) -> 17:03:00 | J9: Mini | L9: =VLOOKUP($J$7,$J$11:$L$72,3,0) -> 06:41:00 | N9: Maxi | P9: =VLOOKUP($N$7,$N$11:$P$72,3,0) -> 16:13:00 | U9: Vitesse du vent | X9: =MAX($X$11:$X$72) -> 40.3 | Z9: =VLOOKUP($X$9,$X$11:$AE$72,8,0) -> 2022-05-05 | AD9: =BB9+AG5 -> 102.1 | AE9: Année | AG9: =MAX($AG$11:$AG$72) -> 3 | AI9: =MAX($AI$11:AI$72) -> 0.1368055556 | AK9: de 0 à 6h59 | AM9: 7h à 11h59 | AO9: 12h à 18h59 | AQ9: 19h à 23h59 | AU9: Soleil de l'Année | AV9: =BC9+AX5 -> 27.72847222 | AX9: =MAX($AX$11:$AX$72) -> 0.5861111111 | BB9: 98.6 | BC9: 16.4 | BE9: Météofloralies | BF9: =SUBSTITUE(TEXTE(MAX(CNUM(SUBSTITUE($U$2;".";","));CNUM(SUBSTITUE($V$2;".";",")));"standard");",";".")
C11: =PROPER(TEXT(D11,"JJJJ")) -> Dimanche | D11: 2022-05-01 | F11: 19.5 | H11: 0.6520833333 | J11: 9.7 | L11: 0.2895833333 | N11: 19.5 | P11: 0.6520833333 | U11: =$C11 -> Dimanche | V11: =$D11 -> 2022-05-01 | X11: 20.2 | Z11: 19:20:00 | AD11: =$C11 -> Dimanche | AE11: =$D11 -> 2022-05-01 | AG11: 0 | AI11: 00:00:00 | AK11: 00:00:00 | AM11: 00:00:00 | AO11: 00:00:00 | AQ11: 00:00:00 | AU11: =$C11 -> Dimanche | AV11: =$D11 -> 2022-05-01 | AX11: 10:15:00 | BA11: 3 | BB11: =D11 -> 2022-05-01 | BC11: =$C11 -> Dimanche
C13: =PROPER(TEXT(D13,"JJJJ")) -> Lundi | D13: =$D11+1 -> 2022-05-02 | F13: 20.4 | H13: 0.7145833333 | J13: 10.1 | L13: 0.3006944444 | N13: 20.4 | P13: 0.7145833333 | U13: =$C13 -> Lundi | V13: =$D13 -> 2022-05-02 | X13: 29.5 | Z13: 13:58:00 | AD13: =$C13 -> Lundi | AE13: =$D13 -> 2022-05-02 | AG13: 0 | AI13: 00:00:00 | AK13: 00:00:00 | AM13: 00:00:00 | AO13: 00:00:00 | AQ13: 00:00:00 | AU13: =$C13 -> Lundi | AV13: =$D13 -> 2022-05-02 | AX13: 12:19:00 | BA13: 4 | BB13: =D13 -> 2022-05-02 | BC13: =$C13 -> Lundi
C15: =PROPER(TEXT(D15,"JJJJ")) -> Mardi | D15: =$D13+1 -> 2022-05-03 | F15: 21.5 | H15: 0.7034722222 | J15: 9.4 | L15: 0.2979166667 | N15: 21.5 | P15: 0.7034722222 | U15: =$C15 -> Mardi | V15: =$D15 -> 2022-05-03 | X15: 25.6 | Z15: 13:39:00 | AD15: =$C15 -> Mardi | AE15: =$D15 -> 2022-05-03 | AG15: 0 | AI15: 00:00:00 | AK15: 00:00:00 | AM15: 00:00:00 | AO15: 00:00:00 | AQ15: 00:00:00 | AU15: =$C15 -> Mardi | AV15: =$D15 -> 2022-05-03 | AX15: 12:58:00 | BA15: 5 | BB15: =D15 -> 2022-05-03 | BC15: =$C15 -> Mardi
C17: =PROPER(TEXT(D17,"JJJJ")) -> Mercredi | D17: =$D15+1 -> 2022-05-04 | F17: 18.6 | H17: 0.6666666667 | J17: 9.5 | L17: 0.2569444444 | N17: 18.6 | P17: 0.6666666667 | U17: =$C17 -> Mercredi | V17: =$D17 -> 2022-05-04 | X17: 27.7 | Z17: 16:02:00 | AD17: =$C17 -> Mercredi | AE17: =$D17 -> 2022-05-04 | AG17: 0 | AI17: 00:00:00 | AK17: 00:00:00 | AM17: 00:00:00 | AO17: 00:00:00 | AQ17: 00:00:00 | AU17: =$C17 -> Mercredi | AV17: =$D17 -> 2022-05-04 | AX17: 11:19:00 | BA17: 6 | BB17: =D17 -> 2022-05-04 | BC17: =$C17 -> Mercredi
C19: =PROPER(TEXT(D19,"JJJJ")) -> Jeudi | D19: =$D17+1 -> 2022-05-05 | F19: 18.2 | H19: 0.7104166667 | J19: 8.7 | L19: 0.2784722222 | N19: 18.2 | P19: 0.7104166667 | U19: =$C19 -> Jeudi | V19: =$D19 -> 2022-05-05 | X19: 40.3 | Z19: 00:08:00 | AD19: =$C19 -> Jeudi | AE19: =$D19 -> 2022-05-05 | AG19: 0 | AI19: 00:00:00 | AK19: 00:00:00 | AM19: 00:00:00 | AO19: 00:00:00 | AQ19: 00:00:00 | AU19: =$C19 -> Jeudi | AV19: =$D19 -> 2022-05-05 | AX19: 12:48:00 | BA19: 7 | BB19: =D19 -> 2022-05-05 | BC19: =$C19 -> Jeudi
C21: =PROPER(TEXT(D21,"JJJJ")) -> Vendredi | D21: =$D19+1 -> 2022-05-06 | F21: 22.1 | H21: 0.7354166667 | J21: 9.2 | L21: 0.2840277778 | N21: 22.1 | P21: 0.7354166667 | U21: =$C21 -> Vendredi | V21: =$D21 -> 2022-05-06 | X21: 27.7 | Z21: 13:06:00 | AD21: =$C21 -> Vendredi | AE21: =$D21 -> 2022-05-06 | AG21: 0 | AI21: 00:00:00 | AK21: 00:00:00 | AM21: 00:00:00 | AO21: 00:00:00 | AQ21: 00:00:00 | AU21: =$C21 -> Vendredi | AV21: =$D21 -> 2022-05-06 | AX21: 12:52:00 | BA21: 8 | BB21: =D21 -> 2022-05-06 | BC21: =$C21 -> Vendredi
C23: =PROPER(TEXT(D23,"JJJJ")) -> Samedi | D23: =$D21+1 -> 2022-05-07 | F23: 20.5 | H23: 0.5277777778 | J23: 13.9 | L23: 0.3895833333 | N23: 20.5 | P23: 0.5277777778 | U23: =$C23 -> Samedi | V23: =$D23 -> 2022-05-07 | X23: 26.5 | Z23: 15:40:00 | AD23: =$C23 -> Samedi | AE23: =$D23 -> 2022-05-07 | AG23: 0 | AI23: 00:00:00 | AK23: 00:00:00 | AM23: 00:00:00 | AO23: 00:00:00 | AQ23: 00:00:00 | AU23: =$C23 -> Samedi | AV23: =$D23 -> 2022-05-07 | AX23: 12:54:00 | BA23: 9 | BB23: =D23 -> 2022-05-07 | BC23: =$C23 -> Samedi
C25: =PROPER(TEXT(D25,"JJJJ")) -> Dimanche | D25: =$D23+1 -> 2022-05-08 | F25: 23.2 | H25: 0.6333333333 | J25: 11.2 | L25: 0.2881944444 | N25: 23.2 | P25: 0.6333333333 | U25: =$C25 -> Dimanche | V25: =$D25 -> 2022-05-08 | X25: 20.2 | Z25: 17:12:00 | AD25: =$C25 -> Dimanche | AE25: =$D25 -> 2022-05-08 | AG25: 0 | AI25: 00:00:00 | AK25: 00:00:00 | AM25: 00:00:00 | AO25: 00:00:00 | AQ25: 00:00:00 | AU25: =$C25 -> Dimanche | AV25: =$D25 -> 2022-05-08 | AX25: 13:08:00 | BA25: 10 | BB25: =D25 -> 2022-05-08 | BC25: =$C25 -> Dimanche
C27: =PROPER(TEXT(D27,"JJJJ")) -> Lundi | D27: =$D25+1 -> 2022-05-09 | F27: 26 | H27: 0.6652777778 | J27: 12.2 | L27: 0.2840277778 | N27: 26 | P27: 0.6652777778 | U27: =$C27 -> Lundi | V27: =$D27 -> 2022-05-09 | X27: 22 | Z27: 16:38:00 | AD27: =$C27 -> Lundi | AE27: =$D27 -> 2022-05-09 | AG27: 0 | AI27: 00:00:00 | AK27: 00:00:00 | AM27: 00:00:00 | AO27: 00:00:00 | AQ27: 00:00:00 | AU27: =$C27 -> Lundi | AV27: =$D27 -> 2022-05-09 | AX27: 13:22:00 | BA27: 11 | BB27: =D27 -> 2022-05-09 | BC27: =$C27 -> Lundi
C29: =PROPER(TEXT(D29,"JJJJ")) -> Mardi | D29: =$D27+1 -> 2022-05-10 | F29: 25 | H29: 0.6888888889 | J29: 14.3 | L29: 0.29375 | N29: 25 | P29: 0.6888888889 | U29: =$C29 -> Mardi | V29: =$D29 -> 2022-05-10 | X29: 18.4 | Z29: 19:47:00 | AD29: =$C29 -> Mardi | AE29: =$D29 -> 2022-05-10 | AG29: 0 | AI29: 00:00:00 | AK29: 00:00:00 | AM29: 00:00:00 | AO29: 00:00:00 | AQ29: 00:00:00 | AU29: =$C29 -> Mardi | AV29: =$D29 -> 2022-05-10 | AX29: 13:24:00 | BA29: 12 | BB29: =D29 -> 2022-05-10 | BC29: =$C29 -> Mardi
C31: =PROPER(TEXT(D31,"JJJJ")) -> Mercredi | D31: =$D29+1 -> 2022-05-11 | F31: 19.2 | H31: 0.6430555556 | J31: 11 | L31: 0.3208333333 | N31: 19.2 | P31: 0.6430555556 | U31: =$C31 -> Mercredi | V31: =$D31 -> 2022-05-11 | X31: 25.6 | Z31: 18:22:00 | AD31: =$C31 -> Mercredi | AE31: =$D31 -> 2022-05-11 | AG31: 0 | AI31: 00:00:00 | AK31: 00:00:00 | AM31: 00:00:00 | AO31: 00:00:00 | AQ31: 00:00:00 | AU31: =$C31 -> Mercredi | AV31: =$D31 -> 2022-05-11 | AX31: 13:37:00 | BA31: 13 | BB31: =D31 -> 2022-05-11 | BC31: =$C31 -> Mercredi
C33: =PROPER(TEXT(D33,"JJJJ")) -> Jeudi | D33: =$D31+1 -> 2022-05-12 | F33: 18.5 | H33: 0.5354166667 | J33: 12.7 | L33: 0.3027777778 | N33: 18.5 | P33: 0.5354166667 | U33: =$C33 -> Jeudi | V33: =$D33 -> 2022-05-12 | X33: 23.8 | Z33: 18:04:00 | AD33: =$C33 -> Jeudi | AE33: =$D33 -> 2022-05-12 | AG33: 0 | AI33: 00:00:00 | AK33: 00:00:00 | AM33: 00:00:00 | AO33: 00:00:00 | AQ33: 00:00:00 | AU33: =$C33 -> Jeudi | AV33: =$D33 -> 2022-05-12 | AX33: 11:54:00 | BA33: 14 | BB33: =D33 -> 2022-05-12 | BC33: =$C33 -> Jeudi
C35: =PROPER(TEXT(D35,"JJJJ")) -> Vendredi | D35: =$D33+1 -> 2022-05-13 | F35: 22.1 | H35: 14:24:00 | J35: 11.6 | L35: 06:48:00 | N35: 22.1 | P35: 14:24:00 | U35: =$C35 -> Vendredi | V35: =$D35 -> 2022-05-13 | X35: 25.6 | Z35: 18:07:00 | AD35: =$C35 -> Vendredi | AE35: =$D35 -> 2022-05-13 | AG35: 0 | AI35: 00:00:00 | AK35: 00:00:00 | AM35: 00:00:00 | AO35: 00:00:00 | AQ35: 00:00:00 | AU35: =$C35 -> Vendredi | AV35: =$D35 -> 2022-05-13 | AX35: 13:19:00 | BA35: 15 | BB35: =D35 -> 2022-05-13 | BC35: =$C35 -> Vendredi
C37: =PROPER(TEXT(D37,"JJJJ")) -> Samedi | D37: =$D35+1 -> 2022-05-14 | F37: 28.8 | H37: 18:31:00 | J37: 13.4 | L37: 04:56:00 | N37: 28.8 | P37: 18:31:00 | U37: =$C37 -> Samedi | V37: =$D37 -> 2022-05-14 | X37: 18.4 | Z37: 23:47:00 | AD37: =$C37 -> Samedi | AE37: =$D37 -> 2022-05-14 | AG37: 0 | AI37: 00:00:00 | AK37: 00:00:00 | AM37: 00:00:00 | AO37: 00:00:00 | AQ37: 00:00:00 | AU37: =$C37 -> Samedi | AV37: =$D37 -> 2022-05-14 | AX37: 13:25:00 | BA37: 16 | BB37: =D37 -> 2022-05-14 | BC37: =$C37 -> Samedi
C39: =PROPER(TEXT(D39,"JJJJ")) -> Dimanche | D39: =$D37+1 -> 2022-05-15 | F39: 24.7 | H39: 14:02:00 | J39: 16.1 | L39: 23:51:00 | N39: 24.7 | P39: 14:02:00 | U39: =$C39 -> Dimanche | V39: =$D39 -> 2022-05-15 | X39: 23.8 | Z39: 19:08:00 | AD39: =$C39 -> Dimanche | AE39: =$D39 -> 2022-05-15 | AG39: 3 | AI39: 03:17:00 | AK39: 03:17:00 | AM39: 00:00:00 | AO39: 00:00:00 | AQ39: 00:00:00 | AU39: =$C39 -> Dimanche | AV39: =$D39 -> 2022-05-15 | AX39: 13:33:00 | BA39: 17 | BB39: =D39 -> 2022-05-15 | BC39: =$C39 -> Dimanche
C41: =PROPER(TEXT(D41,"JJJJ")) -> Lundi | D41: =$D39+1 -> 2022-05-16 | F41: 24.7 | H41: 14:20:00 | J41: 15.7 | L41: 04:57:00 | N41: 24.7 | P41: 14:20:00 | U41: =$C41 -> Lundi | V41: =$D41 -> 2022-05-16 | X41: 18.4 | Z41: 18:15:00 | AD41: =$C41 -> Lundi | AE41: =$D41 -> 2022-05-16 | AG41: 0.5 | AI41: 01:12:00 | AK41: 00:41:00 | AM41: 00:31:00 | AO41: 00:00:00 | AQ41: 00:00:00 | AU41: =$C41 -> Lundi | AV41: =$D41 -> 2022-05-16 | AX41: 13:21:00 | BA41: 18 | BB41: =D41 -> 2022-05-16 | BC41: =$C41 -> Lundi
C43: =PROPER(TEXT(D43,"JJJJ")) -> Mardi | D43: =$D41+1 -> 2022-05-17 | F43: 26.3 | H43: 12:44:00 | J43: 12.4 | L43: 06:50:00 | N43: 26.3 | P43: 12:44:00 | U43: =$C43 -> Mardi | V43: =$D43 -> 2022-05-17 | X43: 23.8 | Z43: 21:14:00 | AD43: =$C43 -> Mardi | AE43: =$D43 -> 2022-05-17 | AG43: 0 | AI43: 00:00:00 | AK43: 00:00:00 | AM43: 00:00:00 | AO43: 00:00:00 | AQ43: 00:00:00 | AU43: =$C43 -> Mardi | AV43: =$D43 -> 2022-05-17 | AX43: 14:04:00 | BA43: 19 | BB43: =D43 -> 2022-05-17 | BC43: =$C43 -> Mardi
C45: =PROPER(TEXT(D45,"JJJJ")) -> Mercredi | D45: =$D43+1 -> 2022-05-18 | F45: 29.8 | H45: 16:15:00 | J45: 13.9 | L45: 07:05:00 | N45: 29.8 | P45: 16:13:00 | U45: =$C45 -> Mercredi | V45: =$D45 -> 2022-05-18 | X45: 25.6 | Z45: 20:54:00 | AD45: =$C45 -> Mercredi | AE45: =$D45 -> 2022-05-18 | AG45: 0 | AI45: 00:00:00 | AK45: 00:00:00 | AM45: 00:00:00 | AO45: 00:00:00 | AQ45: 00:00:00 | AU45: =$C45 -> Mercredi | AV45: =$D45 -> 2022-05-18 | AX45: 13:24:00 | BA45: 20 | BB45: =D45 -> 2022-05-18 | BC45: =$C45 -> Mercredi
C47: =PROPER(TEXT(D47,"JJJJ")) -> Jeudi | D47: =$D45+1 -> 2022-05-19 | F47: 23 | H47: 15:13:00 | J47: 15.8 | L47: 05:28:00 | N47: 23 | P47: 15:13:00 | U47: =$C47 -> Jeudi | V47: =$D47 -> 2022-05-19 | X47: 20.2 | Z47: 16:35:00 | AD47: =$C47 -> Jeudi | AE47: =$D47 -> 2022-05-19 | AG47: 0 | AI47: 00:00:00 | AK47: 00:00:00 | AM47: 00:00:00 | AO47: 00:00:00 | AQ47: 00:00:00 | AU47: =$C47 -> Jeudi | AV47: =$D47 -> 2022-05-19 | AX47: 12:47:00 | BA47: 21 | BB47: =D47 -> 2022-05-19 | BC47: =$C47 -> Jeudi
C49: =PROPER(TEXT(D49,"JJJJ")) -> Vendredi | D49: =$D47+1 -> 2022-05-20 | F49: 21.8 | H49: 13:26:00 | J49: 15.1 | L49: 23:53:00 | N49: 21.8 | P49: 13:26:00 | U49: =$C49 -> Vendredi | V49: =$D49 -> 2022-05-20 | X49: 31.3 | Z49: 14:33:00 | AD49: =$C49 -> Vendredi | AE49: =$D49 -> 2022-05-20 | AG49: 0 | AI49: 00:00:00 | AK49: 00:00:00 | AM49: 00:00:00 | AO49: 00:00:00 | AQ49: 00:00:00 | AU49: =$C49 -> Vendredi | AV49: =$D49 -> 2022-05-20 | AX49: 13:50:00 | BA49: 22 | BB49: =D49 -> 2022-05-20 | BC49: =$C49 -> Vendredi
C51: =PROPER(TEXT(D51,"JJJJ")) -> Samedi | D51: =$D49+1 -> 2022-05-21 | F51: 28.8 | J51: 10.8 | L51: 06:21:00 | N51: 28.8 | P51: 18:24:00 | U51: =$C51 -> Samedi | V51: =$D51 -> 2022-05-21 | X51: 18.4 | Z51: 13:09:00 | AD51: =$C51 -> Samedi | AE51: =$D51 -> 2022-05-21 | AG51: 0 | AI51: 00:00:00 | AK51: 00:00:00 | AM51: 00:00:00 | AO51: 00:00:00 | AQ51: 00:00:00 | AU51: =$C51 -> Samedi | AV51: =$D51 -> 2022-05-21 | AX51: 13:20:00 | BA51: 23 | BB51: =D51 -> 2022-05-21 | BC51: =$C51 -> Samedi
C53: =PROPER(TEXT(D53,"JJJJ")) -> Dimanche | D53: =$D51+1 -> 2022-05-22 | U53: =$C53 -> Dimanche | V53: =$D53 -> 2022-05-22 | AD53: =$C53 -> Dimanche | AE53: =$D53 -> 2022-05-22 | AU53: =$C53 -> Dimanche | AV53: =$D53 -> 2022-05-22 | BA53: 24 | BB53: =D53 -> 2022-05-22 | BC53: =$C53 -> Dimanche
C55: =PROPER(TEXT(D55,"JJJJ")) -> Lundi | D55: =$D53+1 -> 2022-05-23 | U55: =$C55 -> Lundi | V55: =$D55 -> 2022-05-23 | AD55: =$C55 -> Lundi | AE55: =$D55 -> 2022-05-23 | AU55: =$C55 -> Lundi | AV55: =$D55 -> 2022-05-23 | BA55: 25 | BB55: =D55 -> 2022-05-23 | BC55: =$C55 -> Lundi
C57: =PROPER(TEXT(D57,"JJJJ")) -> Mardi | D57: =$D55+1 -> 2022-05-24 | U57: =$C57 -> Mardi | V57: =$D57 -> 2022-05-24 | AD57: =$C57 -> Mardi | AE57: =$D57 -> 2022-05-24 | AU57: =$C57 -> Mardi | AV57: =$D57 -> 2022-05-24 | BA57: 26 | BB57: =D57 -> 2022-05-24 | BC57: =$C57 -> Mardi
C59: =PROPER(TEXT(D59,"JJJJ")) -> Mercredi | D59: =$D57+1 -> 2022-05-25 | U59: =$C59 -> Mercredi | V59: =$D59 -> 2022-05-25 | AD59: =$C59 -> Mercredi | AE59: =$D59 -> 2022-05-25 | AU59: =$C59 -> Mercredi | AV59: =$D59 -> 2022-05-25 | BA59: 27 | BB59: =D59 -> 2022-05-25 | BC59: =$C59 -> Mercredi
C61: =PROPER(TEXT(D61,"JJJJ")) -> Jeudi | D61: =$D59+1 -> 2022-05-26 | U61: =$C61 -> Jeudi | V61: =$D61 -> 2022-05-26 | AD61: =$C61 -> Jeudi | AE61: =$D61 -> 2022-05-26 | AU61: =$C61 -> Jeudi | AV61: =$D61 -> 2022-05-26 | BA61: 28 | BB61: =D61 -> 2022-05-26 | BC61: =$C61 -> Jeudi
C63: =PROPER(TEXT(D63,"JJJJ")) -> Vendredi | D63: =$D61+1 -> 2022-05-27 | U63: =$C63 -> Vendredi | V63: =$D63 -> 2022-05-27 | AD63: =$C63 -> Vendredi | AE63: =$D63 -> 2022-05-27 | AU63: =$C63 -> Vendredi | AV63: =$D63 -> 2022-05-27 | BA63: 29 | BB63: =D63 -> 2022-05-27 | BC63: =$C63 -> Vendredi
C65: =PROPER(TEXT(D65,"JJJJ")) -> Samedi | D65: =$D63+1 -> 2022-05-28 | U65: =$C65 -> Samedi | V65: =$D65 -> 2022-05-28 | AD65: =$C65 -> Samedi | AE65: =$D65 -> 2022-05-28 | AU65: =$C65 -> Samedi | AV65: =$D65 -> 2022-05-28 | BA65: 30 | BB65: =D65 -> 2022-05-28 | BC65: =$C65 -> Samedi
C67: =PROPER(TEXT(D67,"JJJJ")) -> Dimanche | D67: =$D65+1 -> 2022-05-29 | U67: =$C67 -> Dimanche | V67: =$D67 -> 2022-05-29 | AD67: =$C67 -> Dimanche | AE67: =$D67 -> 2022-05-29 | AU67: =$C67 -> Dimanche | AV67: =$D67 -> 2022-05-29 | BA67: 24 | BB67: =D67 -> 2022-05-29 | BC67: =$C67 -> Dimanche
C69: =PROPER(TEXT(D69,"JJJJ")) -> Lundi | D69: =$D67+1 -> 2022-05-30 | U69: =$C69 -> Lundi | V69: =$D69 -> 2022-05-30 | AD69: =$C69 -> Lundi | AE69: =$D69 -> 2022-05-30 | AU69: =$C69 -> Lundi | AV69: =$D69 -> 2022-05-30 | BA69: 25 | BB69: =D69 -> 2022-05-30 | BC69: =$C69 -> Lundi
C71: =PROPER(TEXT(D71,"JJJJ")) -> Mardi | D71: =$D69+1 -> 2022-05-31 | U71: =$C71 -> Mardi | V71: =$D71 -> 2022-05-31 | AD71: =$C71 -> Mardi | AE71: =$D71 -> 2022-05-31 | AU71: =$C71 -> Mardi | AV71: =$D71 -> 2022-05-31 | BA71: 26 | BB71: =D71 -> 2022-05-31 | BC71: =$C71 -> Mardi
BF77: J7 | BH77: N7 | BJ77: X9 | BL77: AG5 | BN77: AX5
BL79: =SUM(BL83:BL85) -> 96.8 | BN79: =SUM(BN83:BN85) -> 16.4
BE81: T° Mini | BF81: =MIN(BF83:BF103) -> -3.5 | BG81: T° Maxi | BH81: =MAX(BH83:BH103) -> 29.8 | BI81: Vent | BJ81: =MAX(BJ83:BJ103) -> 57.5 | BK81: Pluie | BL81: =MAX(BL83:BL103) -> 41.1 | BM81: Soleil | BN81: =MAX(BN83:BN103) -> 11.32847222
BE83: Janvier | BF83: -3.5 | BG83: =BE83 -> Janvier | BH83: 13.2 | BI83: =BE83 -> Janvier | BJ83: 57.5 | BK83: =BE83 -> Janvier | BL83: 41.1 | BM83: =BE83 -> Janvier | BN83: 4.416666667
BE84: Février | BF84: -2.1 | BG84: =BE84 -> Février | BH84: 16.6 | BI84: =BE84 -> Février | BJ84: 47.9 | BK84: =BE84 -> Février | BL84: 23.4 | BM84: =BE84 -> Février | BN84: 4.966666667
BE85: Mars | BF85: -0.2 | BG85: =BE85 -> Mars | BH85: 22.1 | BI85: =BE85 -> Mars | BJ85: 43.69 | BK85: =BE85 -> Mars | BL85: 32.3 | BM85: =BE85 -> Mars | BN85: 7.016666667
BE86: Avril | BF86: =J7 -> 8.7 | BG86: =BE86 -> Avril | BH86: =N7 -> 29.8 | BI86: =BE86 -> Avril | BJ86: =X9 -> 40.3 | BK86: =BE86 -> Avril | BL86: =AG5 -> 3.5 | BM86: =BE86 -> Avril | BN86: =AX5 -> 11.32847222

Sheet MINI-MAXI
A1: =MAI_2022!C5 -> Mai_2022
I2: 1900-05-24
D3: Pluie Maxi Jour et total mois | G3: Températures Mini et Maxi | I3: =I1-940 -> -940
F4: Vent maxi | I4: 3
I5: =I2-I3-I4 -> 1082
A6: Jour | B6: Mois | D6: __200
D7: __180 | E7: =INDIRECT($A$1&"!$W9") -> 00:00:00 | I7: =MAI_2022!J7 -> 8.7
D8: __160 | E8: 132 | I8: 145
A9: =INDIRECT($A$1&"!$AG5") -> 3.5 | B9: =INDIRECT($A$1&"!$AG9") -> 3 | D9: __140 | E9: =INDIRECT($A$1&"!$X$9") -> 40.3 | I9: =I7-940 -> -931.3
A10: 200 | B10: 200 | D10: __120 | E10: 2 | I10: 3
A11: =100*(1-(A9/A10)) -> 98.25 | B11: =100*(1-(B9/B10)) -> 98.5 | D11: __100 | E11: =E8-E9-E10 -> 89.7 | I11: =I8-I9-I10 -> 1073.3
A12: =20*A11/100 -> 19.65 | B12: =20*B11/100 -> 19.7 | D12: __80 | F12: Soleil maxi
A13: 17 | B13: 28 | D13: __60
A14: =(A10/100)*(1+(2*A10/100))/2 -> 5 | B14: =(B10/100)*(1+(2*B10/100))/2 -> 5 | D14: __40 | I14: 22:00:00
D15: _20 | I15: 00:00:00
A16: =INDIRECT($A1&"!$AG9") -> 3 | I16: =MAI_2022!$AX$9 -> 14:04:00
A17: =INDIRECT($A$1&"!$AG9") -> 3 | D17: =MAI_2022!AG7 -> 2022-05-15 | I17: =I14-I16 -> 07:56:00
D21: =NOW() -> 2022-05-22T20:22:19.430 | G21: =MAI_2022!L7 -> 2022-05-05 | H21: =MAI_2022!P7 -> 2022-05-18

Sheet MOIS
A1: =MAI_2022!C5 -> Mai_2022
B3: Jours de pluie + de 2mm | E3: Jours de soleil + de 4h
A9: 31 | D9: 31 | F9: 31
A10: 0 | D10: 0 | F10: 0
A11: =C51 -> 0 | D11: =C50 -> 21 | F11: =C58 -> 
A12: =A9-A10-A11 -> 31 | D12: =D9-D10-D11 -> 10 | F12: =F9-F10-F11 -> 
B21: =NOW() -> 2022-05-22T20:22:19.440
B23: Heures de pluie | E23: Heures de soleil
A29: 2.5 | D29: 22.08333333
A30: 00:00:00 | D30: 00:00:00 | F30: 22.08333333
A31: =B48 -> 0.1868055556 | D31: =C48 -> 11.32847222 | F31: 00:00:00
A32: =A29-A31 -> 2.313194444 | D32: =D29-D31 -> 10.75486111 | F32: =C56 -> 
F33: =F30-F32 -> 
E44: Vent fort au-dessus de
E45: 50km/h
B46: Temps Pluie | C46: H de soleil
A48: Total | B48: =MAI_2022!AI5 -> 0.1868055556 | C48: =MAI_2022!AX5 -> 11.32847222
B49: Jours de pluie
A50: Soleil | C50: =COUNTIF(INDIRECT($A$1&"!$AX11:$AX71"),">4:00") -> 21
A51: Pluie | C51: =COUNTIF(INDIRECT($A$1&"!$Ai11:$Ai71"),">4:00") -> 0 | G51: 31
G52: 0
A53: Nb | G53: =C59 -> 
G54: =G51-G52-G53 -> 
A55: Vent
A56: Nb d'heures < 1.1 km/h | C56: =MAI_2022!#REF! -> 
A57: Nb de jours plus petit que 20km/h | C57: =SUM(#REF!) -> 
A58: Nb de jours entre 20 et 50 km/h | C58: =SUM(#REF!) -> 
A59: Nb de jours plus grand que 50km/h | C59: =SUM(#REF!) -> 

Sheet CONSOLE
C1: Marées | E1: https://marine.meteoconsult.fr/meteo-marine/horaires-maree-la-tranche-sur-mer-1083-0.php
G3: Marée haute | H3: 11;46
E4: Températures Lune Chaleur solaire = T°+2° Conditions Vitesse du vent | G4: Marée haute | H4: *****
G6: Coeff | H6: 57
H7: *****
G9: Marée basse | H9: 4;16
G10: Marée basse | H10: 16;48
G13: T° de l'eau | H13: 17.5
E14: Température ressentie Vent en rafale :
A15: Liste | E15: Dernière mise à jour : Vent moyen : | G15: Heures Soleil | H15: 06:25:00
A16: Orageux | E16: Pluie | H16: 21:39:00
E17: Heures des marées Statistiques Journée Mois Année | G17: Total | H17: 15:14:00
A18: Ensoleillé
A19: Peux nuageux | G19: T° extérieure | H19: =INDEX(RELEVÉS!$B9:$B50000,COUNTA(RELEVÉS!$B9:$B50000)) -> 27.2
A20: Nuageux | G20: T° ressentie | H20: =INDEX(RELEVÉS!$D9:$D50000,COUNTA(RELEVÉS!$D9:$D50000)) -> 28.6
A21: Très nuageux
A22: Petite pluie | G22: Vent journée | H22: =RELEVÉS!Q5+5 -> 23.4
A23: Grosse pluie | G23: Vent moyen | H23: =RELEVÉS!U5+5 -> 5
A24: Orageux | G24: Vent console | H24: 22
A25: Brouillard | G25: Vent rafale | H25: =H24+10 -> 32
A26: Neige
A27: Nuit dégagée
A28: Nuit Nuageuse
E31: =NOW() -> 2022-05-22T20:22:19.430
C33: T° de l'eau | E33: https://fr.surf-forecast.com/breaks/La-Tranchesur-Mer/seatemp
C34: Site | E34: http:///meteofloralies.free.fr

Sheet GRAPHIQUES
C1: Dernière mise à jour le : | F1: =NOW() -> 2022-05-22T20:22:19.430
C2: Température extérieure | I2: Température Mini et Maxi extérieure
C6: Précipitations | I6: Précipitations
C10: Vitesse du vent de la journée | I10: Vitesse du vent
C13: Vitesse du vent
I16: Nombre d'heures de soleil
C21: Chaleur solaire
